DepartmentFamily,Entity,Date,ExpenseType,ExpenseArea,Supplier,PaymentNumber,InvoiceDistributionAmount,InvoiceLineDescription,SupplierPostCode,TransactionType
FOOD STANDARDS AGENCY - Westminster,FOOD STANDARDS AGENCY - Westminster,2017-01-16,EXP - PURCHASE OF GOODS/SERVICES - SHARED SERV OUTSRCG- CIVIL SERV PENSION ADMIN,Finance Director & Branch,LONDON PENSIONS FUND AUTHORITY,1011701893,149333,JAN 17 FUND VALUATION 2013,EC3N 4LP,ADMIN
FOOD STANDARDS AGENCY - Westminster,FOOD STANDARDS AGENCY - Westminster,2017-01-24,EXP - PURCHASE OF GOODS/SERVICES - ICT OUTSOURCING & MAINT/SUPPORT,IT Strategy,RAINMAKER SOLUTIONS LTD,1011701982,135738.05,WORK COMPLETED AND EXPENSES,MK18 1HD,ADMIN
FOOD STANDARDS AGENCY - Westminster,FOOD STANDARDS AGENCY - Westminster,2017-01-16,EXP - PURCHASE OF GOODS/SERVICES - OTHER - PROGRAMME EXPENDITURE,Food Production Branch,ANIMAL AND PLANT HEALTH AGENCY,2012700121,124220.26,"Provision of sampling kits, sampling and testing schedules (Q4 ? Y1): FY 16/17",KT15 3NB,PROGRAMME
FOOD STANDARDS AGENCY - Westminster,FOOD STANDARDS AGENCY - Westminster,2017-01-31,EXP - PURCHASE OF GOODS/SERVICES - OTHER - PROGRAMME EXPENDITURE,Food Production Branch,PUBLIC HEALTH ENGLAND,2012700127,114694.6,FS102121 TASK 30,SP4 0JG,PROGRAMME
FOOD STANDARDS AGENCY - Westminster,FOOD STANDARDS AGENCY - Westminster,2017-01-05,EXP - PURCHASE OF GOODS/SERVICES - ACCOMMODATION & BLDNG MANAGEMENT - CILOR,Security & Estates,LONDON BOROUGH OF CAMDEN,1011701785,105468,BUSINESS RATES FOR AVIATION HOUSE,WC1H 8EQ,ADMIN
FOOD STANDARDS AGENCY - Westminster,FOOD STANDARDS AGENCY - Westminster,2017-01-31,EXP - PURCHASE OF GOODS/SERVICES - OTHER - PROGRAMME EXPENDITURE,Chemical Risk Assessment Unit,PUBLIC HEALTH ENGLAND,2012700127,92341.31,FS516010 NRL FOR MICROBIOLOGY,SP4 0JG,PROGRAMME
FOOD STANDARDS AGENCY - Westminster,FOOD STANDARDS AGENCY - Westminster,2017-01-16,EXP - PURCHASE OF GOODS/SERVICES - ACCOMMODATION & BLDNG MANAGEMENT - INSURANCE,Security & Estates,D T Z,1011701884,83271.62,DTZ INVOICE 431541 - AVH BUILDING TERRORISM AND ENGINEERING INSURANCE,B4 6AJ,ADMIN
FOOD STANDARDS AGENCY - Westminster,FOOD STANDARDS AGENCY - Westminster,2017-01-27,EXP - RENTALS UNDER NON PFI OPERATING LEASES  -OTHER RENTAL- RENT OUTSIDE LONDON,Security & Estates,DEFRA C/O CAPITA,1011702008,68445.8,CAPITA INVOICE 100254/9785 - FOSS HOUSE RENT AND RATES CHARGES MARCH 2016,EC2V 7NQ,ADMIN
FOOD STANDARDS AGENCY - Westminster,FOOD STANDARDS AGENCY - Westminster,2017-01-09,EXP - PURCHASE OF GOODS/SERVICES - OTHER - PROGRAMME EXPENDITURE,Contaminants HoD,C E F A S,2012700111,37434.75, C6028 Q3,NR33 0HT,PROGRAMME
FOOD STANDARDS AGENCY - Westminster,FOOD STANDARDS AGENCY - Westminster,2017-01-10,EXP - PURCHASE OF GOODS/SERVICES - OTHER - PROGRAMME EXPENDITURE,Analysis & Research Branch,C E F A S,2012700114,32445.4,QUARTER 3 INVOICED,NR33 0HT,PROGRAMME
FOOD STANDARDS AGENCY - Westminster,FOOD STANDARDS AGENCY - Westminster,2017-01-18,EXP - PURCHASE OF GOODS/SERVICES - OTHER - PROGRAMME EXPENDITURE,Animal Feed     ,TRADING STANDARDS INSTITUTE (GRANTS),1011701926,32210,Feed Off. Conts 2016/17 NTS/TSI fees. Feed Official Controls funding 2016/17: NTS/TSI fees,SS15 6TH,PROGRAMME
FOOD STANDARDS AGENCY - Westminster,FOOD STANDARDS AGENCY - Westminster,2017-01-12,EXP - PURCHASE OF GOODS/SERVICES - TELECOMS - TELEPHONE,IT Service Delivery,VODAFONE LTD,1011701850,31476.83,Vodafone PSN charges April 16 - Mar 17,MK3 5JL,ADMIN
FOOD STANDARDS AGENCY - Westminster,FOOD STANDARDS AGENCY - Westminster,2017-01-16,EXP - PURCHASE OF GOODS/SERVICES - OTHER ENERGY/UTILITIES/WASTE COST,Security & Estates,EDF ENERGY PLC,1011701882,31300.21,EDF ENERGY INVOICE 2424131 - DECEMBER 2016,EX1 3UT,ADMIN
FOOD STANDARDS AGENCY - Westminster,FOOD STANDARDS AGENCY - Westminster,2017-01-20,EXP - PURCHASE OF GOODS/SERVICES - OTHER - PROGRAMME EXPENDITURE,Comms Directors Office,S K V COMMUNICATIONS,1011701948,30888,CAMPAIGN PR & SUPPORT,M3 7NA,PROGRAMME
FOOD STANDARDS AGENCY - Westminster,FOOD STANDARDS AGENCY - Westminster,2017-01-05,EXP - PURCHASE OF GOODS/SERVICES - OTHER ENERGY/UTILITIES/WASTE COST,Security & Estates,EDF ENERGY PLC,10000069,30202.72,EDF ENERGY INVOICE 2347328 - NOOVEMBER 2016,EX1 3UT,ADMIN
FOOD STANDARDS AGENCY - Westminster,FOOD STANDARDS AGENCY - Westminster,2017-01-24,EXP - PURCHASE OF GOODS/SERVICES - ICT OUTSOURCING & MAINT/SUPPORT,IT Strategy,RAINMAKER SOLUTIONS LTD,1011701982,27147.61,WORK COMPLETED AND EXPENSES,MK18 1HD,ADMIN
FOOD STANDARDS AGENCY - Westminster,FOOD STANDARDS AGENCY - Westminster,2017-01-20,EXP - PURCHASE OF GOODS/SERVICES - OTHER - PROGRAMME EXPENDITURE,Food Incidents & Resilience - Prog,T N S UK LTD,1011701958,25984.25,Phase 1a & 1b LA case studies,SE1 2QY,PROGRAMME
FOOD STANDARDS AGENCY - Westminster,FOOD STANDARDS AGENCY - Westminster,2017-01-12,EXP - PURCHASE OF GOODS/SERVICES - OTHER - LAUNDRY,Operational Delivery,APPARELMASTER UK LTD,1011701853,25823.04,REGION 546- NEW CONTRACT,PR2 9ZD,PROGRAMME
FOOD STANDARDS AGENCY - Westminster,FOOD STANDARDS AGENCY - Westminster,2017-01-13,EXP - PURCHASE OF GOODS/SERVICES - OTHER - PROGRAMME EXPENDITURE,Comms Directors Office,T N S UK LTD,1011701860,24634.2,NAME OF THE PROJECT : BREXIT,SE1 2QY,PROGRAMME
FOOD STANDARDS AGENCY - Westminster,FOOD STANDARDS AGENCY - Westminster,2017-01-10,EXP - PURCHASE OF GOODS/SERVICES - OTHER - PROGRAMME EXPENDITURE,Regulatory Delivery,C E F A S,2012700114,23150.28,FINAL INVOICE FSA,NR33 0HT,PROGRAMME
FOOD STANDARDS AGENCY - Westminster,FOOD STANDARDS AGENCY - Westminster,2017-01-12,EXP - PURCHASE OF GOODS/SERVICES - OTHER - PROGRAMME EXPENDITURE,Regulatory Delivery,C E F A S,2012700118,22526.56,C5666 PHYTOPLANKTON,NR33 0HT,PROGRAMME
FOOD STANDARDS AGENCY - Westminster,FOOD STANDARDS AGENCY - Westminster,2017-01-12,EXP - PURCHASE OF GOODS/SERVICES - OTHER - PROGRAMME EXPENDITURE,Regulatory Delivery,C E F A S,2012700118,20652.32,C5666 PHYTOPLANKTON,NR33 0HT,PROGRAMME
FOOD STANDARDS AGENCY - Westminster,FOOD STANDARDS AGENCY - Westminster,2017-01-04,EXP - RENTALS UNDER NON PFI OPERATING LEASES  -OTHER RENTAL- RENT OUTSIDE LONDON,Security & Estates,DEFRA C/O CAPITA,1011701781,18081.62,CAPITA INV. 100254/9743 - FM CORE AND DEPRECIATION - NOV 2016,EC2V 7NQ,ADMIN
FOOD STANDARDS AGENCY - Westminster,FOOD STANDARDS AGENCY - Westminster,2017-01-11,EXP - PURCHASE OF GOODS/SERVICES - OTHER FACILTIES COSTS - SECURITY,Security & Estates,INTERSERVE FM LTD,1011701825,17945.24,BUILDING ELECTRICAL SERVICES,SE1 8RT,ADMIN
FOOD STANDARDS AGENCY - Westminster,FOOD STANDARDS AGENCY - Westminster,2017-01-12,EXP - PURCHASE OF GOODS/SERVICES - OTHER - PROGRAMME EXPENDITURE,Regulatory Delivery,C E F A S,2012700118,16497.98,C5666 PHYTOPLANKTON,NR33 0HT,PROGRAMME
FOOD STANDARDS AGENCY - Westminster,FOOD STANDARDS AGENCY - Westminster,2017-01-27,EXP - PURCHASE OF GOODS/SERVICES - ACCOMMODATION & BLDNG MANAGEMENT - CILOR,Security & Estates,DEFRA C/O CAPITA,1011702008,15428.96,CAPITA INVOICE 100254/9785 - FOSS HOUSE RENT AND RATES CHARGES MARCH 2016,EC2V 7NQ,ADMIN
FOOD STANDARDS AGENCY - Westminster,FOOD STANDARDS AGENCY - Westminster,2017-01-12,EXP - PURCHASE OF GOODS/SERVICES - OTHER - PROGRAMME EXPENDITURE,Regulatory Delivery,C E F A S,2012700118,15386,C5666 PHYTOPLANKTON,NR33 0HT,PROGRAMME
FOOD STANDARDS AGENCY - Westminster,FOOD STANDARDS AGENCY - Westminster,2017-01-11,EXP - PURCHASE OF GOODS/SERVICES - ACCOMM & BLDNG MGMT - SHARED SITE RECHARGE,Security & Estates,INTERSERVE FM LTD,1011701825,13760.5,BUILDING ELECTRICAL SERVICES,SE1 8RT,ADMIN
FOOD STANDARDS AGENCY - Westminster,FOOD STANDARDS AGENCY - Westminster,2017-01-11,EXP - PURCHASE OF GOODS/SERVICES - ACCOMM & BLDNG MGMT - SHARED SITE RECHARGE,Security & Estates,INTERSERVE FM LTD,1011701825,13737.1,BUILDING ELECTRICAL SERVICES,SE1 8RT,ADMIN
FOOD STANDARDS AGENCY - Westminster,FOOD STANDARDS AGENCY - Westminster,2017-01-18,EXP - PURCHASE OF GOODS/SERVICES - ICT OUTSOURCING & MAINT/SUPPORT,Finance Director & Branch,MIDLAND SOFTWARE LTD,1011701916,11930,INITIAL CHARGE-HOSTED ONLY,NG11 6LL,ADMIN
FOOD STANDARDS AGENCY - Westminster,FOOD STANDARDS AGENCY - Westminster,2017-01-12,EXP - PURCHASE OF GOODS/SERVICES - OTHER - PROGRAMME EXPENDITURE,Regulatory Delivery,C E F A S,2012700118,11639.22,C5666 PHYTOPLANKTON,NR33 0HT,PROGRAMME
FOOD STANDARDS AGENCY - Westminster,FOOD STANDARDS AGENCY - Westminster,2017-01-04,EXP - PURCHASE OF GOODS/SERVICES - ACCOMM & BLDNG MGMT - SHARED SITE RECHARGE,Security & Estates,DEFRA C/O CAPITA,1011701781,10446.83,CAPITA INV. 100254/9743 - FM CORE AND DEPRECIATION - NOV 2016,EC2V 7NQ,ADMIN
FOOD STANDARDS AGENCY - Westminster,FOOD STANDARDS AGENCY - Westminster,2017-01-18,EXP - PURCHASE OF GOODS/SERVICES - ICT OUTSOURCING & MAINT/SUPPORT,Finance Director & Branch,MIDLAND SOFTWARE LTD,1011701916,10040,SET UP COSTS,NG11 6LL,ADMIN
FOOD STANDARDS AGENCY - Westminster,FOOD STANDARDS AGENCY - Westminster,2017-01-11,EXP - PURCHASE OF GOODS/SERVICES - OTHER - PROGRAMME EXPENDITURE,Chief Scientist,ECONOMICS FOR THE ENVIRONMENT CONSULTANCY LTD,1011701844,9224.8,FS102087 D02-02B FINAL DATA SET,W1W 7SQ,PROGRAMME
FOOD STANDARDS AGENCY - Westminster,FOOD STANDARDS AGENCY - Westminster,2017-01-09,EXP - PURCHASE OF GOODS/SERVICES - OTHER - PROGRAMME EXPENDITURE,Contaminants HoD,C E F A S,2012700111,7486.95, C6028 Q3,NR33 0HT,PROGRAMME
FOOD STANDARDS AGENCY - Westminster,FOOD STANDARDS AGENCY - Westminster,2017-01-10,EXP - PURCHASE OF GOODS/SERVICES - OTHER - PROGRAMME EXPENDITURE,Chief Scientist,C E F A S,2012700114,7134.2,QUARTER 3 INVOICES,NR33 0HT,PROGRAMME
FOOD STANDARDS AGENCY - Westminster,FOOD STANDARDS AGENCY - Westminster,2017-01-11,EXP - PURCHASE OF GOODS/SERVICES - OTHER - PROGRAMME EXPENDITURE,Chief Scientist,ECONOMICS FOR THE ENVIRONMENT CONSULTANCY LTD,1011701844,6504.4,PROFESSIONAL SERVICES FOR PROJECT FS102087,W1W 7SQ,PROGRAMME
FOOD STANDARDS AGENCY - Westminster,FOOD STANDARDS AGENCY - Westminster,2017-01-11,EXP - PURCHASE OF GOODS/SERVICES - OTHER - PROGRAMME EXPENDITURE,Chief Scientist,ECONOMICS FOR THE ENVIRONMENT CONSULTANCY LTD,1011701844,6304.8,FS102087 D02-02B FINAL DATA SET,W1W 7SQ,PROGRAMME
FOOD STANDARDS AGENCY - Westminster,FOOD STANDARDS AGENCY - Westminster,2017-01-12,EXP - PURCHASE OF GOODS/SERVICES - TELECOMS - TELEPHONE,IT Service Delivery,VODAFONE LTD,1011701850,6295.37,PO 11770000318,MK3 5JL,ADMIN
FOOD STANDARDS AGENCY - Westminster,FOOD STANDARDS AGENCY - Westminster,2017-01-20,EXP - PURCHASE OF GOODS/SERVICES - OTHER - PROGRAMME EXPENDITURE,Comms Directors Office,S K V COMMUNICATIONS,1011701948,6177.6,CAMPAIGN PR & SUPPORT,M3 7NA,PROGRAMME
FOOD STANDARDS AGENCY - Westminster,FOOD STANDARDS AGENCY - Westminster,2017-01-11,EXP - PURCHASE OF GOODS/SERVICES - ACCOMM & BLDNG MGMT - SHARED SITE RECHARGE,Security & Estates,INTERSERVE FM LTD,1011701825,5499.52,BUILDING ELECTRICAL SERVICES,SE1 8RT,ADMIN
FOOD STANDARDS AGENCY - Westminster,FOOD STANDARDS AGENCY - Westminster,2017-01-12,EXP - PURCHASE OF GOODS/SERVICES - OTHER - LAUNDRY,Operational Delivery,APPARELMASTER UK LTD,1011701853,5164.6,REGION 546- NEW CONTRACT,PR2 9ZD,PROGRAMME
FOOD STANDARDS AGENCY - Westminster,FOOD STANDARDS AGENCY - Westminster,2017-01-12,EXP - PURCHASE OF GOODS/SERVICES - OTHER - PROGRAMME EXPENDITURE,Regulatory Delivery,C E F A S,2012700118,4902,FSA  PROVISIONAL RMP ASSESSMENTS,NR33 0HT,PROGRAMME
FOOD STANDARDS AGENCY - Westminster,FOOD STANDARDS AGENCY - Westminster,2017-01-20,EXP - PURCHASE OF GOODS/SERVICES - OTHER - PROGRAMME EXPENDITURE,Food Incidents & Resilience - Prog,T N S UK LTD,1011701958,4522.5,Research work to gather evidence of the performance of the current withdrawal and recall processes,SE1 2QY,PROGRAMME
FOOD STANDARDS AGENCY - Westminster,FOOD STANDARDS AGENCY - Westminster,2017-01-11,EXP - PURCHASE OF GOODS/SERVICES - OTHER FACILTIES COSTS - SECURITY,Security & Estates,INTERSERVE FM LTD,1011701825,3589.05,BUILDING ELECTRICAL SERVICES,SE1 8RT,ADMIN
FOOD STANDARDS AGENCY - Westminster,FOOD STANDARDS AGENCY - Westminster,2017-01-16,EXP - PURCHASE OF GOODS/SERVICES - RAIL TRAVEL,Operational Delivery,REDFERN TRAVEL LTD,1011701891,3319.55,CONSOLIDATED BUSINESS TRAVEL WEEK 2,BD1 5HQ,PROGRAMME
FOOD STANDARDS AGENCY - Westminster,FOOD STANDARDS AGENCY - Westminster,2017-01-11,EXP - PURCHASE OF GOODS/SERVICES -ACCOMM & BLDNG MGMT - MAINTENANCE & REPAIRS,Security & Estates,INTERSERVE FM LTD,1011701825,2980.9,BUILDING ELECTRICAL SERVICES,SE1 8RT,ADMIN
FOOD STANDARDS AGENCY - Westminster,FOOD STANDARDS AGENCY - Westminster,2017-01-23,EXP - PURCHASE OF GOODS/SERVICES - RAIL TRAVEL,Operational Delivery,REDFERN TRAVEL LTD,1011701963,2679.7,CONSOLIDATED BUSINESS TRAVEL WEEK 3,BD1 5HQ,PROGRAMME
FOOD STANDARDS AGENCY - Westminster,FOOD STANDARDS AGENCY - Westminster,2017-01-16,EXP - PURCHASE OF GOODS/SERVICES - RAIL TRAVEL,Finance Director & Branch,REDFERN TRAVEL LTD,1011701891,2206.25,CONSOLIDATED BUSINESS TRAVEL WEEK 2,BD1 5HQ,ADMIN
FOOD STANDARDS AGENCY - Westminster,FOOD STANDARDS AGENCY - Westminster,2017-01-16,EXP - PURCHASE OF GOODS/SERVICES - AIR TRAVEL,Additives,REDFERN TRAVEL LTD,1011701891,2134.3,CONSOLIDATED BUSINESS TRAVEL WEEK 2,BD1 5HQ,ADMIN
FOOD STANDARDS AGENCY - Westminster,FOOD STANDARDS AGENCY - Westminster,2017-01-16,EXP - PURCHASE OF GOODS/SERVICES -  FOREIGN AIR TRAVEL,Additives,REDFERN TRAVEL LTD,1011701891,2099.3,CONSOLIDATED BUSINESS TRAVEL WEEK 2,BD1 5HQ,ADMIN
FOOD STANDARDS AGENCY - Westminster,FOOD STANDARDS AGENCY - Westminster,2017-01-16,EXP - PURCHASE OF GOODS/SERVICES - RAIL TRAVEL,Regulatory Delivery ,REDFERN TRAVEL LTD,1011701891,1982.9,CONSOLIDATED BUSINESS TRAVEL WEEK 2,BD1 5HQ,ADMIN
FOOD STANDARDS AGENCY - Westminster,FOOD STANDARDS AGENCY - Westminster,2017-01-16,EXP - PURCHASE OF GOODS/SERVICES - RAIL TRAVEL,Operations Assurance ,REDFERN TRAVEL LTD,1011701891,1675.15,CONSOLIDATED BUSINESS TRAVEL WEEK 2,BD1 5HQ,PROGRAMME
FOOD STANDARDS AGENCY - Westminster,FOOD STANDARDS AGENCY - Westminster,2017-01-23,EXP - PURCHASE OF GOODS/SERVICES - RAIL TRAVEL,Operations Assurance ,REDFERN TRAVEL LTD,1011701963,1655.2,CONSOLIDATED BUSINESS TRAVEL WEEK 3,BD1 5HQ,PROGRAMME
FOOD STANDARDS AGENCY - Westminster,FOOD STANDARDS AGENCY - Westminster,2017-01-23,EXP - PURCHASE OF GOODS/SERVICES - RAIL TRAVEL,Organisational Development,REDFERN TRAVEL LTD,1011701963,1333.6,CONSOLIDATED BUSINESS TRAVEL WEEK 3,BD1 5HQ,ADMIN
FOOD STANDARDS AGENCY - Westminster,FOOD STANDARDS AGENCY - Westminster,2017-01-16,EXP - PURCHASE OF GOODS/SERVICES - SUBSISTENCE,Regulatory & International,REDFERN TRAVEL LTD,1011701891,1323,CONSOLIDATED BUSINESS TRAVEL WEEK 2,BD1 5HQ,ADMIN
FOOD STANDARDS AGENCY - Westminster,FOOD STANDARDS AGENCY - Westminster,2017-01-16,EXP - PURCHASE OF GOODS/SERVICES - FOREIGN SUBSISTENCE,Regulatory & International,REDFERN TRAVEL LTD,1011701891,1297.57,CONSOLIDATED BUSINESS TRAVEL WEEK 2,BD1 5HQ,ADMIN
FOOD STANDARDS AGENCY - Westminster,FOOD STANDARDS AGENCY - Westminster,2017-01-23,EXP - PURCHASE OF GOODS/SERVICES - RAIL TRAVEL,Regulating our Future,REDFERN TRAVEL LTD,1011701963,1293,CONSOLIDATED BUSINESS TRAVEL WEEK 3,BD1 5HQ,ADMIN
FOOD STANDARDS AGENCY - Westminster,FOOD STANDARDS AGENCY - Westminster,2017-01-16,EXP - PURCHASE OF GOODS/SERVICES - RAIL TRAVEL,Chief Executive & Private Office,REDFERN TRAVEL LTD,1011701891,1271.2,CONSOLIDATED BUSINESS TRAVEL WEEK 2,BD1 5HQ,ADMIN
FOOD STANDARDS AGENCY - Westminster,FOOD STANDARDS AGENCY - Westminster,2017-01-23,EXP - PURCHASE OF GOODS/SERVICES - RAIL TRAVEL,Finance Director & Branch,REDFERN TRAVEL LTD,1011701963,1192.6,CONSOLIDATED BUSINESS TRAVEL WEEK 3,BD1 5HQ,ADMIN
FOOD STANDARDS AGENCY - Westminster,FOOD STANDARDS AGENCY - Westminster,2017-01-16,EXP - PURCHASE OF GOODS/SERVICES - RAIL TRAVEL,Organisational Development,REDFERN TRAVEL LTD,1011701891,1154.7,CONSOLIDATED BUSINESS TRAVEL WEEK 2,BD1 5HQ,ADMIN
FOOD STANDARDS AGENCY - Westminster,FOOD STANDARDS AGENCY - Westminster,2017-01-18,EXP - PURCHASE OF GOODS/SERVICES - ICT OUTSOURCING & MAINT/SUPPORT,Finance Director & Branch,MIDLAND SOFTWARE LTD,1011701916,1149," BETWEEN,14/11/2016-20/11/16",NG11 6LL,ADMIN
FOOD STANDARDS AGENCY - Westminster,FOOD STANDARDS AGENCY - Westminster,2017-01-16,EXP - PURCHASE OF GOODS/SERVICES - FOREIGN SUBSISTENCE,Food Hygiene Policy Branch,REDFERN TRAVEL LTD,1011701891,1053.07,CONSOLIDATED BUSINESS TRAVEL WEEK 2,BD1 5HQ,ADMIN
FOOD STANDARDS AGENCY - Westminster,FOOD STANDARDS AGENCY - Westminster,2017-01-16,EXP - PURCHASE OF GOODS/SERVICES - FOREIGN SUBSISTENCE,Corporate Support Unit,REDFERN TRAVEL LTD,1011701891,1021.12,CONSOLIDATED BUSINESS TRAVEL WEEK 2,BD1 5HQ,ADMIN
FOOD STANDARDS AGENCY - Westminster,FOOD STANDARDS AGENCY - Westminster,2017-01-16,EXP - PURCHASE OF GOODS/SERVICES - RAIL TRAVEL,Comms Directors Office,REDFERN TRAVEL LTD,1011701891,902.1,CONSOLIDATED BUSINESS TRAVEL WEEK 2,BD1 5HQ,ADMIN
FOOD STANDARDS AGENCY - Westminster,FOOD STANDARDS AGENCY - Westminster,2017-01-23,EXP - PURCHASE OF GOODS/SERVICES - RAIL TRAVEL,Food Incidents & Resilience - Prog,REDFERN TRAVEL LTD,1011701963,897.5,CONSOLIDATED BUSINESS TRAVEL WEEK 3,BD1 5HQ,PROGRAMME
FOOD STANDARDS AGENCY - Westminster,FOOD STANDARDS AGENCY - Westminster,2017-01-11,EXP - PURCHASE OF GOODS/SERVICES - OTHER - PROGRAMME EXPENDITURE,Chief Scientist,ECONOMICS FOR THE ENVIRONMENT CONSULTANCY LTD,1011701844,888.8,FS102087 D02-02B FINAL DATA SET,W1W 7SQ,PROGRAMME
FOOD STANDARDS AGENCY - Westminster,FOOD STANDARDS AGENCY - Westminster,2017-01-23,EXP - PURCHASE OF GOODS/SERVICES -  FOREIGN AIR TRAVEL,Legal Branch A & Investigations,REDFERN TRAVEL LTD,1011701963,849.97,CONSOLIDATED BUSINESS TRAVEL WEEK 3,BD1 5HQ,ADMIN
FOOD STANDARDS AGENCY - Westminster,FOOD STANDARDS AGENCY - Westminster,2017-01-18,EXP - PURCHASE OF GOODS/SERVICES - ICT OUTSOURCING & MAINT/SUPPORT,Finance Director & Branch,MIDLAND SOFTWARE LTD,1011701916,849," BETWEEN,14/11/2016 TO 201/11/2016",NG11 6LL,ADMIN
FOOD STANDARDS AGENCY - Westminster,FOOD STANDARDS AGENCY - Westminster,2017-01-18,EXP - PURCHASE OF GOODS/SERVICES - ICT OUTSOURCING & MAINT/SUPPORT,Finance Director & Branch,MIDLAND SOFTWARE LTD,1011701916,849,"BETWEEN,21/11/2016 TO 27/11/2016",NG11 6LL,ADMIN
FOOD STANDARDS AGENCY - Westminster,FOOD STANDARDS AGENCY - Westminster,2017-01-23,EXP - PURCHASE OF GOODS/SERVICES - RAIL TRAVEL,Corporate Support Unit,REDFERN TRAVEL LTD,1011701963,834,CONSOLIDATED BUSINESS TRAVEL WEEK 3,BD1 5HQ,ADMIN
FOOD STANDARDS AGENCY - Westminster,FOOD STANDARDS AGENCY - Westminster,2017-01-23,EXP - PURCHASE OF GOODS/SERVICES -  FOREIGN AIR TRAVEL,Regulatory & International,REDFERN TRAVEL LTD,1011701963,821.13,CONSOLIDATED BUSINESS TRAVEL WEEK 3,BD1 5HQ,ADMIN
FOOD STANDARDS AGENCY - Westminster,FOOD STANDARDS AGENCY - Westminster,2017-01-16,EXP - PURCHASE OF GOODS/SERVICES -  FOREIGN AIR TRAVEL,Regulatory & International,REDFERN TRAVEL LTD,1011701891,810.57,CONSOLIDATED BUSINESS TRAVEL WEEK 2,BD1 5HQ,ADMIN
FOOD STANDARDS AGENCY - Westminster,FOOD STANDARDS AGENCY - Westminster,2017-01-23,EXP - PURCHASE OF GOODS/SERVICES - RAIL TRAVEL,Regulatory Delivery ,REDFERN TRAVEL LTD,1011701963,806.15,CONSOLIDATED BUSINESS TRAVEL WEEK 3,BD1 5HQ,ADMIN
FOOD STANDARDS AGENCY - Westminster,FOOD STANDARDS AGENCY - Westminster,2017-01-16,EXP - PURCHASE OF GOODS/SERVICES - RAIL TRAVEL,Planning and Performance,REDFERN TRAVEL LTD,1011701891,773.55,CONSOLIDATED BUSINESS TRAVEL WEEK 2,BD1 5HQ,ADMIN
FOOD STANDARDS AGENCY - Westminster,FOOD STANDARDS AGENCY - Westminster,2017-01-16,EXP - PURCHASE OF GOODS/SERVICES - FOREIGN SUBSISTENCE,Microbiological Food Safety Branch,REDFERN TRAVEL LTD,1011701891,755.11,CONSOLIDATED BUSINESS TRAVEL WEEK 2,BD1 5HQ,ADMIN
FOOD STANDARDS AGENCY - Westminster,FOOD STANDARDS AGENCY - Westminster,2017-01-23,EXP - PURCHASE OF GOODS/SERVICES - SUBSISTENCE,Operational Delivery,REDFERN TRAVEL LTD,1011701963,753.75,CONSOLIDATED BUSINESS TRAVEL WEEK 3,BD1 5HQ,PROGRAMME
FOOD STANDARDS AGENCY - Westminster,FOOD STANDARDS AGENCY - Westminster,2017-01-23,EXP - PURCHASE OF GOODS/SERVICES - SUBSISTENCE,Operations Assurance ,REDFERN TRAVEL LTD,1011701963,715.4,CONSOLIDATED BUSINESS TRAVEL WEEK 3,BD1 5HQ,PROGRAMME
FOOD STANDARDS AGENCY - Westminster,FOOD STANDARDS AGENCY - Westminster,2017-01-23,EXP - PURCHASE OF GOODS/SERVICES - RAIL TRAVEL,Planning and Performance,REDFERN TRAVEL LTD,1011701963,707.85,CONSOLIDATED BUSINESS TRAVEL WEEK 3,BD1 5HQ,ADMIN
FOOD STANDARDS AGENCY - Westminster,FOOD STANDARDS AGENCY - Westminster,2017-01-16,EXP - PURCHASE OF GOODS/SERVICES - SUBSISTENCE,Operational Delivery,REDFERN TRAVEL LTD,1011701891,689.86,CONSOLIDATED BUSINESS TRAVEL WEEK 2,BD1 5HQ,PROGRAMME
FOOD STANDARDS AGENCY - Westminster,FOOD STANDARDS AGENCY - Westminster,2017-01-16,EXP - PURCHASE OF GOODS/SERVICES - SUBSISTENCE,Regulatory Delivery ,REDFERN TRAVEL LTD,1011701891,682.45,CONSOLIDATED BUSINESS TRAVEL WEEK 2,BD1 5HQ,ADMIN
FOOD STANDARDS AGENCY - Westminster,FOOD STANDARDS AGENCY - Westminster,2017-01-16,EXP - PURCHASE OF GOODS/SERVICES - RAIL TRAVEL,IT Information & Knowledge Management,REDFERN TRAVEL LTD,1011701891,670.3,CONSOLIDATED BUSINESS TRAVEL WEEK 2,BD1 5HQ,ADMIN
FOOD STANDARDS AGENCY - Westminster,FOOD STANDARDS AGENCY - Westminster,2017-01-16,EXP - PURCHASE OF GOODS/SERVICES - SUBSISTENCE,Comms Directors Office,REDFERN TRAVEL LTD,1011701891,630.82,CONSOLIDATED BUSINESS TRAVEL WEEK 2,BD1 5HQ,ADMIN
FOOD STANDARDS AGENCY - Westminster,FOOD STANDARDS AGENCY - Westminster,2017-01-12,EXP - PURCHASE OF GOODS/SERVICES - OTHER - PROGRAMME EXPENDITURE,Regulatory Delivery,WILLIAMS LEA TAG,1011701851,606,WAREHOUSING ,EC1M 4NA,PROGRAMME
FOOD STANDARDS AGENCY - Westminster,FOOD STANDARDS AGENCY - Westminster,2017-01-11,EXP - PURCHASE OF GOODS/SERVICES -ACCOMM & BLDNG MGMT - MAINTENANCE & REPAIRS,Security & Estates,INTERSERVE FM LTD,1011701825,596.18,BUILDING ELECTRICAL SERVICES,SE1 8RT,ADMIN
FOOD STANDARDS AGENCY - Westminster,FOOD STANDARDS AGENCY - Westminster,2017-01-23,EXP - PURCHASE OF GOODS/SERVICES - RAIL TRAVEL,Area 2 Wales - Cluster 23,REDFERN TRAVEL LTD,1011701963,586.7,CONSOLIDATED BUSINESS TRAVEL WEEK 3,BD1 5HQ,PROGRAMME
FOOD STANDARDS AGENCY - Westminster,FOOD STANDARDS AGENCY - Westminster,2017-01-18,EXP - PURCHASE OF GOODS/SERVICES - ICT OUTSOURCING & MAINT/SUPPORT,Finance Director & Branch,MIDLAND SOFTWARE LTD,1011701916,574.5,"BETWEEN,1/12/2016-4/12/2016",NG11 6LL,ADMIN
FOOD STANDARDS AGENCY - Westminster,FOOD STANDARDS AGENCY - Westminster,2017-01-16,EXP - PURCHASE OF GOODS/SERVICES - RAIL TRAVEL,Corporate Support Unit,REDFERN TRAVEL LTD,1011701891,568.4,CONSOLIDATED BUSINESS TRAVEL WEEK 2,BD1 5HQ,ADMIN
FOOD STANDARDS AGENCY - Westminster,FOOD STANDARDS AGENCY - Westminster,2017-01-23,EXP - PURCHASE OF GOODS/SERVICES - SUBSISTENCE,Regulatory Delivery ,REDFERN TRAVEL LTD,1011701963,565.57,CONSOLIDATED BUSINESS TRAVEL WEEK 3,BD1 5HQ,ADMIN
FOOD STANDARDS AGENCY - Westminster,FOOD STANDARDS AGENCY - Westminster,2017-01-16,EXP - PURCHASE OF GOODS/SERVICES - RAIL TRAVEL,IT Service Delivery,REDFERN TRAVEL LTD,1011701891,552.7,CONSOLIDATED BUSINESS TRAVEL WEEK 2,BD1 5HQ,ADMIN
FOOD STANDARDS AGENCY - Westminster,FOOD STANDARDS AGENCY - Westminster,2017-01-16,EXP - PURCHASE OF GOODS/SERVICES - FOREIGN SUBSISTENCE,Animal Feed Branch,REDFERN TRAVEL LTD,1011701891,515.26,CONSOLIDATED BUSINESS TRAVEL WEEK 2,BD1 5HQ,ADMIN
FOOD STANDARDS AGENCY - Westminster,FOOD STANDARDS AGENCY - Westminster,2017-01-23,EXP - PURCHASE OF GOODS/SERVICES - RAIL TRAVEL,Area 6 South East England - Cluster 65,REDFERN TRAVEL LTD,1011701963,512.3,CONSOLIDATED BUSINESS TRAVEL WEEK 3,BD1 5HQ,PROGRAMME
FOOD STANDARDS AGENCY - Westminster,FOOD STANDARDS AGENCY - Westminster,2017-01-16,EXP - PURCHASE OF GOODS/SERVICES - SUBSISTENCE,Food Incidents & Resilience - Prog,REDFERN TRAVEL LTD,1011701891,468.8,CONSOLIDATED BUSINESS TRAVEL WEEK 2,BD1 5HQ,PROGRAMME
FOOD STANDARDS AGENCY - Westminster,FOOD STANDARDS AGENCY - Westminster,2017-01-16,EXP - PURCHASE OF GOODS/SERVICES - FOREIGN SUBSISTENCE,IT Information & Knowledge Management,REDFERN TRAVEL LTD,1011701891,455.1,CONSOLIDATED BUSINESS TRAVEL WEEK 2,BD1 5HQ,ADMIN
FOOD STANDARDS AGENCY - Westminster,FOOD STANDARDS AGENCY - Westminster,2017-01-23,EXP - PURCHASE OF GOODS/SERVICES - RAIL TRAVEL,Area 6 South East England - Cluster 62,REDFERN TRAVEL LTD,1011701963,453.6,CONSOLIDATED BUSINESS TRAVEL WEEK 3,BD1 5HQ,PROGRAMME
FOOD STANDARDS AGENCY - Westminster,FOOD STANDARDS AGENCY - Westminster,2017-01-16,EXP - PURCHASE OF GOODS/SERVICES - SUBSISTENCE,Organisational Development,REDFERN TRAVEL LTD,1011701891,426.87,CONSOLIDATED BUSINESS TRAVEL WEEK 2,BD1 5HQ,ADMIN
FOOD STANDARDS AGENCY - Westminster,FOOD STANDARDS AGENCY - Westminster,2017-01-16,EXP - PURCHASE OF GOODS/SERVICES - RAIL TRAVEL,Area 4 North East England - Cluster 46,REDFERN TRAVEL LTD,1011701891,423.9,CONSOLIDATED BUSINESS TRAVEL WEEK 2,BD1 5HQ,PROGRAMME
FOOD STANDARDS AGENCY - Westminster,FOOD STANDARDS AGENCY - Westminster,2017-01-23,EXP - PURCHASE OF GOODS/SERVICES - SUBSISTENCE,Food Incidents & Resilience - Prog,REDFERN TRAVEL LTD,1011701963,414.2,CONSOLIDATED BUSINESS TRAVEL WEEK 3,BD1 5HQ,PROGRAMME
FOOD STANDARDS AGENCY - Westminster,FOOD STANDARDS AGENCY - Westminster,2017-01-16,EXP - PURCHASE OF GOODS/SERVICES - AIR TRAVEL,Operations Assurance ,REDFERN TRAVEL LTD,1011701891,411.15,CONSOLIDATED BUSINESS TRAVEL WEEK 2,BD1 5HQ,PROGRAMME
FOOD STANDARDS AGENCY - Westminster,FOOD STANDARDS AGENCY - Westminster,2017-01-16,EXP - PURCHASE OF GOODS/SERVICES - RAIL TRAVEL,Area 3 North West England - Cluster 33,REDFERN TRAVEL LTD,1011701891,402.55,CONSOLIDATED BUSINESS TRAVEL WEEK 2,BD1 5HQ,PROGRAMME
FOOD STANDARDS AGENCY - Westminster,FOOD STANDARDS AGENCY - Westminster,2017-01-23,EXP - PURCHASE OF GOODS/SERVICES - SUBSISTENCE,Comms Directors Office,REDFERN TRAVEL LTD,1011701963,400.79,CONSOLIDATED BUSINESS TRAVEL WEEK 3,BD1 5HQ,ADMIN
FOOD STANDARDS AGENCY - Westminster,FOOD STANDARDS AGENCY - Westminster,2017-01-18,EXP - PURCHASE OF GOODS/SERVICES - ICT OUTSOURCING & MAINT/SUPPORT,Finance Director & Branch,MIDLAND SOFTWARE LTD,1011701916,398.35,Fixed Price Scoping Service for Strategic Consulting of system rebuild proposal,NG11 6LL,ADMIN
FOOD STANDARDS AGENCY - Westminster,FOOD STANDARDS AGENCY - Westminster,2017-01-16,EXP - PURCHASE OF GOODS/SERVICES - SUBSISTENCE,Food Hygiene Policy Branch,REDFERN TRAVEL LTD,1011701891,397.18,CONSOLIDATED BUSINESS TRAVEL WEEK 2,BD1 5HQ,ADMIN
FOOD STANDARDS AGENCY - Westminster,FOOD STANDARDS AGENCY - Westminster,2017-01-16,EXP - PURCHASE OF GOODS/SERVICES - FOREIGN SUBSISTENCE,Chemical Risk Assessment Unit,REDFERN TRAVEL LTD,1011701891,384.92,CONSOLIDATED BUSINESS TRAVEL WEEK 2,BD1 5HQ,ADMIN
FOOD STANDARDS AGENCY - Westminster,FOOD STANDARDS AGENCY - Westminster,2017-01-23,EXP - PURCHASE OF GOODS/SERVICES - RAIL TRAVEL,IT Service Delivery,REDFERN TRAVEL LTD,1011701963,365,CONSOLIDATED BUSINESS TRAVEL WEEK 3,BD1 5HQ,ADMIN
FOOD STANDARDS AGENCY - Westminster,FOOD STANDARDS AGENCY - Westminster,2017-01-16,EXP - PURCHASE OF GOODS/SERVICES - RAIL TRAVEL,Food Crime Unit - Prog,REDFERN TRAVEL LTD,1011701891,364.9,CONSOLIDATED BUSINESS TRAVEL WEEK 2,BD1 5HQ,PROGRAMME
FOOD STANDARDS AGENCY - Westminster,FOOD STANDARDS AGENCY - Westminster,2017-01-16,EXP - PURCHASE OF GOODS/SERVICES - AIR TRAVEL,Comms Directors Office,REDFERN TRAVEL LTD,1011701891,362.41,CONSOLIDATED BUSINESS TRAVEL WEEK 2,BD1 5HQ,ADMIN
FOOD STANDARDS AGENCY - Westminster,FOOD STANDARDS AGENCY - Westminster,2017-01-16,EXP - PURCHASE OF GOODS/SERVICES - SUBSISTENCE,Chief Executive & Private Office,REDFERN TRAVEL LTD,1011701891,354.33,CONSOLIDATED BUSINESS TRAVEL WEEK 2,BD1 5HQ,ADMIN
FOOD STANDARDS AGENCY - Westminster,FOOD STANDARDS AGENCY - Westminster,2017-01-23,EXP - PURCHASE OF GOODS/SERVICES - RAIL TRAVEL,Comms Directors Office,REDFERN TRAVEL LTD,1011701963,330.95,CONSOLIDATED BUSINESS TRAVEL WEEK 3,BD1 5HQ,ADMIN
FOOD STANDARDS AGENCY - Westminster,FOOD STANDARDS AGENCY - Westminster,2017-01-16,EXP - PURCHASE OF GOODS/SERVICES - SUBSISTENCE,IT Service Delivery,REDFERN TRAVEL LTD,1011701891,325.41,CONSOLIDATED BUSINESS TRAVEL WEEK 2,BD1 5HQ,ADMIN
FOOD STANDARDS AGENCY - Westminster,FOOD STANDARDS AGENCY - Westminster,2017-01-16,EXP - PURCHASE OF GOODS/SERVICES - RAIL TRAVEL,Area 6 South East England - Cluster 61,REDFERN TRAVEL LTD,1011701891,325.3,CONSOLIDATED BUSINESS TRAVEL WEEK 2,BD1 5HQ,PROGRAMME
FOOD STANDARDS AGENCY - Westminster,FOOD STANDARDS AGENCY - Westminster,2017-01-23,EXP - PURCHASE OF GOODS/SERVICES - SUBSISTENCE,Area 2 Wales - Cluster 23,REDFERN TRAVEL LTD,1011701963,323.71,CONSOLIDATED BUSINESS TRAVEL WEEK 3,BD1 5HQ,PROGRAMME
FOOD STANDARDS AGENCY - Westminster,FOOD STANDARDS AGENCY - Westminster,2017-01-16,EXP - PURCHASE OF GOODS/SERVICES - RAIL TRAVEL,Area 5 South West England - Cluster 56,REDFERN TRAVEL LTD,1011701891,315.2,CONSOLIDATED BUSINESS TRAVEL WEEK 2,BD1 5HQ,PROGRAMME
FOOD STANDARDS AGENCY - Westminster,FOOD STANDARDS AGENCY - Westminster,2017-01-23,EXP - PURCHASE OF GOODS/SERVICES - SUBSISTENCE,Regulating our Future,REDFERN TRAVEL LTD,1011701963,312.39,CONSOLIDATED BUSINESS TRAVEL WEEK 3,BD1 5HQ,ADMIN
FOOD STANDARDS AGENCY - Westminster,FOOD STANDARDS AGENCY - Westminster,2017-01-23,EXP - PURCHASE OF GOODS/SERVICES - RAIL TRAVEL,Area 6 South East England - Cluster 63,REDFERN TRAVEL LTD,1011701963,305.7,CONSOLIDATED BUSINESS TRAVEL WEEK 3,BD1 5HQ,PROGRAMME
FOOD STANDARDS AGENCY - Westminster,FOOD STANDARDS AGENCY - Westminster,2017-01-16,EXP - PURCHASE OF GOODS/SERVICES - SUBSISTENCE,Area 3 North West England - Cluster 32,REDFERN TRAVEL LTD,1011701891,300.9,CONSOLIDATED BUSINESS TRAVEL WEEK 2,BD1 5HQ,PROGRAMME
FOOD STANDARDS AGENCY - Westminster,FOOD STANDARDS AGENCY - Westminster,2017-01-16,EXP - PURCHASE OF GOODS/SERVICES - RAIL TRAVEL,Area 3 North West England - Cluster 32,REDFERN TRAVEL LTD,1011701891,280.75,CONSOLIDATED BUSINESS TRAVEL WEEK 2,BD1 5HQ,PROGRAMME
FOOD STANDARDS AGENCY - Westminster,FOOD STANDARDS AGENCY - Westminster,2017-01-23,EXP - PURCHASE OF GOODS/SERVICES - RAIL TRAVEL,Analysis & Research Branch,REDFERN TRAVEL LTD,1011701963,275.3,CONSOLIDATED BUSINESS TRAVEL WEEK 3,BD1 5HQ,ADMIN
FOOD STANDARDS AGENCY - Westminster,FOOD STANDARDS AGENCY - Westminster,2017-01-23,EXP - PURCHASE OF GOODS/SERVICES - RAIL TRAVEL,Chair & Deputy Chair,REDFERN TRAVEL LTD,1011701963,273.3,CONSOLIDATED BUSINESS TRAVEL WEEK 3,BD1 5HQ,ADMIN
FOOD STANDARDS AGENCY - Westminster,FOOD STANDARDS AGENCY - Westminster,2017-01-16,EXP - PURCHASE OF GOODS/SERVICES - RAIL TRAVEL,Area 6 South East England - Cluster 63,REDFERN TRAVEL LTD,1011701891,271.1,CONSOLIDATED BUSINESS TRAVEL WEEK 2,BD1 5HQ,PROGRAMME
FOOD STANDARDS AGENCY - Westminster,FOOD STANDARDS AGENCY - Westminster,2017-01-23,EXP - PURCHASE OF GOODS/SERVICES - SUBSISTENCE,Planning and Performance,REDFERN TRAVEL LTD,1011701963,270.05,CONSOLIDATED BUSINESS TRAVEL WEEK 3,BD1 5HQ,ADMIN
FOOD STANDARDS AGENCY - Westminster,FOOD STANDARDS AGENCY - Westminster,2017-01-16,EXP - PURCHASE OF GOODS/SERVICES - RAIL TRAVEL,Regulatory & International,REDFERN TRAVEL LTD,1011701891,267.6,CONSOLIDATED BUSINESS TRAVEL WEEK 2,BD1 5HQ,ADMIN
FOOD STANDARDS AGENCY - Westminster,FOOD STANDARDS AGENCY - Westminster,2017-01-23,EXP - PURCHASE OF GOODS/SERVICES - SUBSISTENCE,Corporate Support Unit,REDFERN TRAVEL LTD,1011701963,263.53,CONSOLIDATED BUSINESS TRAVEL WEEK 3,BD1 5HQ,ADMIN
FOOD STANDARDS AGENCY - Westminster,FOOD STANDARDS AGENCY - Westminster,2017-01-16,EXP - PURCHASE OF GOODS/SERVICES - SUBSISTENCE,Animal Feed Branch,REDFERN TRAVEL LTD,1011701891,263.18,CONSOLIDATED BUSINESS TRAVEL WEEK 2,BD1 5HQ,ADMIN
FOOD STANDARDS AGENCY - Westminster,FOOD STANDARDS AGENCY - Westminster,2017-01-16,EXP - PURCHASE OF GOODS/SERVICES - SUBSISTENCE,Additives,REDFERN TRAVEL LTD,1011701891,258.75,CONSOLIDATED BUSINESS TRAVEL WEEK 2,BD1 5HQ,ADMIN
FOOD STANDARDS AGENCY - Westminster,FOOD STANDARDS AGENCY - Westminster,2017-01-16,EXP - PURCHASE OF GOODS/SERVICES - SUBSISTENCE,Area 2 Wales - Cluster 23,REDFERN TRAVEL LTD,1011701891,255.7,CONSOLIDATED BUSINESS TRAVEL WEEK 2,BD1 5HQ,PROGRAMME
FOOD STANDARDS AGENCY - Westminster,FOOD STANDARDS AGENCY - Westminster,2017-01-23,EXP - PURCHASE OF GOODS/SERVICES - RAIL TRAVEL,Area 6 South East England - Cluster 66,REDFERN TRAVEL LTD,1011701963,247.7,CONSOLIDATED BUSINESS TRAVEL WEEK 3,BD1 5HQ,PROGRAMME
FOOD STANDARDS AGENCY - Westminster,FOOD STANDARDS AGENCY - Westminster,2017-01-16,EXP - PURCHASE OF GOODS/SERVICES - RAIL TRAVEL,Area 5 South West England - Cluster 54,REDFERN TRAVEL LTD,1011701891,246.5,CONSOLIDATED BUSINESS TRAVEL WEEK 2,BD1 5HQ,PROGRAMME
FOOD STANDARDS AGENCY - Westminster,FOOD STANDARDS AGENCY - Westminster,2017-01-16,EXP - PURCHASE OF GOODS/SERVICES - SUBSISTENCE,IT Information & Knowledge Management,REDFERN TRAVEL LTD,1011701891,244.1,CONSOLIDATED BUSINESS TRAVEL WEEK 2,BD1 5HQ,ADMIN
FOOD STANDARDS AGENCY - Westminster,FOOD STANDARDS AGENCY - Westminster,2017-01-23,EXP - PURCHASE OF GOODS/SERVICES - RAIL TRAVEL,Area 5 South West England - Cluster 54,REDFERN TRAVEL LTD,1011701963,241.3,CONSOLIDATED BUSINESS TRAVEL WEEK 3,BD1 5HQ,PROGRAMME
FOOD STANDARDS AGENCY - Westminster,FOOD STANDARDS AGENCY - Westminster,2017-01-16,EXP - PURCHASE OF GOODS/SERVICES - RAIL TRAVEL,Area 5 South West England - Cluster 55,REDFERN TRAVEL LTD,1011701891,236.7,CONSOLIDATED BUSINESS TRAVEL WEEK 2,BD1 5HQ,PROGRAMME
FOOD STANDARDS AGENCY - Westminster,FOOD STANDARDS AGENCY - Westminster,2017-01-23,EXP - PURCHASE OF GOODS/SERVICES - RAIL TRAVEL,Internal Audit,REDFERN TRAVEL LTD,1011701963,235.6,CONSOLIDATED BUSINESS TRAVEL WEEK 3,BD1 5HQ,ADMIN
FOOD STANDARDS AGENCY - Westminster,FOOD STANDARDS AGENCY - Westminster,2017-01-23,EXP - PURCHASE OF GOODS/SERVICES - AIR TRAVEL,Organisational Development,REDFERN TRAVEL LTD,1011701963,234.08,CONSOLIDATED BUSINESS TRAVEL WEEK 3,BD1 5HQ,ADMIN
FOOD STANDARDS AGENCY - Westminster,FOOD STANDARDS AGENCY - Westminster,2017-01-16,EXP - PURCHASE OF GOODS/SERVICES - RAIL TRAVEL,Area 4 North East England - Cluster 41,REDFERN TRAVEL LTD,1011701891,228.7,CONSOLIDATED BUSINESS TRAVEL WEEK 2,BD1 5HQ,PROGRAMME
FOOD STANDARDS AGENCY - Westminster,FOOD STANDARDS AGENCY - Westminster,2017-01-23,EXP - PURCHASE OF GOODS/SERVICES - SUBSISTENCE,Area 5 South West England - Cluster 53,REDFERN TRAVEL LTD,1011701963,228.31,CONSOLIDATED BUSINESS TRAVEL WEEK 3,BD1 5HQ,PROGRAMME
FOOD STANDARDS AGENCY - Westminster,FOOD STANDARDS AGENCY - Westminster,2017-01-23,EXP - PURCHASE OF GOODS/SERVICES - AIR TRAVEL,Comms Directors Office,REDFERN TRAVEL LTD,1011701963,227.93,CONSOLIDATED BUSINESS TRAVEL WEEK 3,BD1 5HQ,ADMIN
FOOD STANDARDS AGENCY - Westminster,FOOD STANDARDS AGENCY - Westminster,2017-01-16,EXP - PURCHASE OF GOODS/SERVICES - RAIL TRAVEL,Regulating our Future,REDFERN TRAVEL LTD,1011701891,225.8,CONSOLIDATED BUSINESS TRAVEL WEEK 2,BD1 5HQ,ADMIN
FOOD STANDARDS AGENCY - Westminster,FOOD STANDARDS AGENCY - Westminster,2017-01-23,EXP - PURCHASE OF GOODS/SERVICES - SUBSISTENCE,IT Service Delivery,REDFERN TRAVEL LTD,1011701963,223.19,CONSOLIDATED BUSINESS TRAVEL WEEK 3,BD1 5HQ,ADMIN
FOOD STANDARDS AGENCY - Westminster,FOOD STANDARDS AGENCY - Westminster,2017-01-16,EXP - PURCHASE OF GOODS/SERVICES - FOREIGN SUBSISTENCE,Operations Assurance ,REDFERN TRAVEL LTD,1011701891,219.59,CONSOLIDATED BUSINESS TRAVEL WEEK 2,BD1 5HQ,PROGRAMME
FOOD STANDARDS AGENCY - Westminster,FOOD STANDARDS AGENCY - Westminster,2017-01-16,EXP - PURCHASE OF GOODS/SERVICES - SUBSISTENCE,Food Crime Unit - Admin,REDFERN TRAVEL LTD,1011701891,214.79,CONSOLIDATED BUSINESS TRAVEL WEEK 2,BD1 5HQ,ADMIN
FOOD STANDARDS AGENCY - Westminster,FOOD STANDARDS AGENCY - Westminster,2017-01-18,EXP - PURCHASE OF GOODS/SERVICES - ICT OUTSOURCING & MAINT/SUPPORT,Finance Director & Branch,MIDLAND SOFTWARE LTD,1011701916,213.8,TRAIN TRAVEL,NG11 6LL,ADMIN
FOOD STANDARDS AGENCY - Westminster,FOOD STANDARDS AGENCY - Westminster,2017-01-23,EXP - PURCHASE OF GOODS/SERVICES - RAIL TRAVEL,Area 5 South West England - Cluster 56,REDFERN TRAVEL LTD,1011701963,211,CONSOLIDATED BUSINESS TRAVEL WEEK 3,BD1 5HQ,PROGRAMME
FOOD STANDARDS AGENCY - Westminster,FOOD STANDARDS AGENCY - Westminster,2017-01-16,EXP - PURCHASE OF GOODS/SERVICES - RAIL TRAVEL,Area 5 South West England - Cluster 52,REDFERN TRAVEL LTD,1011701891,202.1,CONSOLIDATED BUSINESS TRAVEL WEEK 2,BD1 5HQ,PROGRAMME
FOOD STANDARDS AGENCY - Westminster,FOOD STANDARDS AGENCY - Westminster,2017-01-16,EXP - PURCHASE OF GOODS/SERVICES - SUBSISTENCE,Operations Assurance ,REDFERN TRAVEL LTD,1011701891,201.96,CONSOLIDATED BUSINESS TRAVEL WEEK 2,BD1 5HQ,PROGRAMME
FOOD STANDARDS AGENCY - Westminster,FOOD STANDARDS AGENCY - Westminster,2017-01-16,EXP - PURCHASE OF GOODS/SERVICES - SUBSISTENCE,Area 5 South West England - Cluster 52,REDFERN TRAVEL LTD,1011701891,201.06,CONSOLIDATED BUSINESS TRAVEL WEEK 2,BD1 5HQ,PROGRAMME
FOOD STANDARDS AGENCY - Westminster,FOOD STANDARDS AGENCY - Westminster,2017-01-23,EXP - PURCHASE OF GOODS/SERVICES - RAIL TRAVEL,Area 4 North East England - Cluster 41,REDFERN TRAVEL LTD,1011701963,199.4,CONSOLIDATED BUSINESS TRAVEL WEEK 3,BD1 5HQ,PROGRAMME
FOOD STANDARDS AGENCY - Westminster,FOOD STANDARDS AGENCY - Westminster,2017-01-23,EXP - PURCHASE OF GOODS/SERVICES - AIR TRAVEL,Regulating our Future,REDFERN TRAVEL LTD,1011701963,192.88,CONSOLIDATED BUSINESS TRAVEL WEEK 3,BD1 5HQ,ADMIN
FOOD STANDARDS AGENCY - Westminster,FOOD STANDARDS AGENCY - Westminster,2017-01-16,EXP - PURCHASE OF GOODS/SERVICES - SUBSISTENCE,Planning and Performance,REDFERN TRAVEL LTD,1011701891,191.67,CONSOLIDATED BUSINESS TRAVEL WEEK 2,BD1 5HQ,ADMIN
FOOD STANDARDS AGENCY - Westminster,FOOD STANDARDS AGENCY - Westminster,2017-01-23,EXP - PURCHASE OF GOODS/SERVICES - SUBSISTENCE,Security & Estates,REDFERN TRAVEL LTD,1011701963,188.6,CONSOLIDATED BUSINESS TRAVEL WEEK 3,BD1 5HQ,ADMIN
FOOD STANDARDS AGENCY - Westminster,FOOD STANDARDS AGENCY - Westminster,2017-01-16,EXP - PURCHASE OF GOODS/SERVICES - RAIL TRAVEL,Area 2 Wales - Cluster 21,REDFERN TRAVEL LTD,1011701891,176,CONSOLIDATED BUSINESS TRAVEL WEEK 2,BD1 5HQ,PROGRAMME
FOOD STANDARDS AGENCY - Westminster,FOOD STANDARDS AGENCY - Westminster,2017-01-23,EXP - PURCHASE OF GOODS/SERVICES - RAIL TRAVEL,IT Information & Knowledge Management,REDFERN TRAVEL LTD,1011701963,173.4,CONSOLIDATED BUSINESS TRAVEL WEEK 3,BD1 5HQ,ADMIN
FOOD STANDARDS AGENCY - Westminster,FOOD STANDARDS AGENCY - Westminster,2017-01-23,EXP - PURCHASE OF GOODS/SERVICES - RAIL TRAVEL,Non Meat Field Ops,REDFERN TRAVEL LTD,1011701963,169.7,CONSOLIDATED BUSINESS TRAVEL WEEK 3,BD1 5HQ,PROGRAMME
FOOD STANDARDS AGENCY - Westminster,FOOD STANDARDS AGENCY - Westminster,2017-01-23,EXP - PURCHASE OF GOODS/SERVICES - SUBSISTENCE,Area 3 North West England - Cluster 32,REDFERN TRAVEL LTD,1011701963,163.08,CONSOLIDATED BUSINESS TRAVEL WEEK 3,BD1 5HQ,PROGRAMME
FOOD STANDARDS AGENCY - Westminster,FOOD STANDARDS AGENCY - Westminster,2017-01-23,EXP - PURCHASE OF GOODS/SERVICES - SUBSISTENCE,Area 4 North East England - Cluster 47,REDFERN TRAVEL LTD,1011701963,163.08,CONSOLIDATED BUSINESS TRAVEL WEEK 3,BD1 5HQ,PROGRAMME
FOOD STANDARDS AGENCY - Westminster,FOOD STANDARDS AGENCY - Westminster,2017-01-23,EXP - PURCHASE OF GOODS/SERVICES - RAIL TRAVEL,EU Regulatory Reform Branch,REDFERN TRAVEL LTD,1011701963,159,CONSOLIDATED BUSINESS TRAVEL WEEK 3,BD1 5HQ,ADMIN
FOOD STANDARDS AGENCY - Westminster,FOOD STANDARDS AGENCY - Westminster,2017-01-18,EXP - PURCHASE OF GOODS/SERVICES - ICT OUTSOURCING & MAINT/SUPPORT,Finance Director & Branch,MIDLAND SOFTWARE LTD,1011701916,153.15,EXPENSES,NG11 6LL,ADMIN
FOOD STANDARDS AGENCY - Westminster,FOOD STANDARDS AGENCY - Westminster,2017-01-23,EXP - PURCHASE OF GOODS/SERVICES - RAIL TRAVEL,Area 4 North East England - Cluster 47,REDFERN TRAVEL LTD,1011701963,152.5,CONSOLIDATED BUSINESS TRAVEL WEEK 3,BD1 5HQ,PROGRAMME
FOOD STANDARDS AGENCY - Westminster,FOOD STANDARDS AGENCY - Westminster,2017-01-23,EXP - PURCHASE OF GOODS/SERVICES - SUBSISTENCE,Chair & Deputy Chair,REDFERN TRAVEL LTD,1011701963,151.2,CONSOLIDATED BUSINESS TRAVEL WEEK 3,BD1 5HQ,ADMIN
FOOD STANDARDS AGENCY - Westminster,FOOD STANDARDS AGENCY - Westminster,2017-01-16,EXP - PURCHASE OF GOODS/SERVICES - SUBSISTENCE,Area 6 South East England - Cluster 65,REDFERN TRAVEL LTD,1011701891,150.42,CONSOLIDATED BUSINESS TRAVEL WEEK 2,BD1 5HQ,PROGRAMME
FOOD STANDARDS AGENCY - Westminster,FOOD STANDARDS AGENCY - Westminster,2017-01-16,EXP - PURCHASE OF GOODS/SERVICES - FOREIGN SUBSISTENCE,Additives,REDFERN TRAVEL LTD,1011701891,148.25,CONSOLIDATED BUSINESS TRAVEL WEEK 2,BD1 5HQ,ADMIN
FOOD STANDARDS AGENCY - Westminster,FOOD STANDARDS AGENCY - Westminster,2017-01-16,EXP - PURCHASE OF GOODS/SERVICES - FOREIGN SUBSISTENCE,Allergens,REDFERN TRAVEL LTD,1011701891,141.79,CONSOLIDATED BUSINESS TRAVEL WEEK 2,BD1 5HQ,ADMIN
FOOD STANDARDS AGENCY - Westminster,FOOD STANDARDS AGENCY - Westminster,2017-01-16,EXP - PURCHASE OF GOODS/SERVICES - AIR TRAVEL,Allergens,REDFERN TRAVEL LTD,1011701891,140.7,CONSOLIDATED BUSINESS TRAVEL WEEK 2,BD1 5HQ,ADMIN
FOOD STANDARDS AGENCY - Westminster,FOOD STANDARDS AGENCY - Westminster,2017-01-16,EXP - PURCHASE OF GOODS/SERVICES - RAIL TRAVEL,Area 5 South West England - Cluster 51,REDFERN TRAVEL LTD,1011701891,134.45,CONSOLIDATED BUSINESS TRAVEL WEEK 2,BD1 5HQ,PROGRAMME
FOOD STANDARDS AGENCY - Westminster,FOOD STANDARDS AGENCY - Westminster,2017-01-16,EXP - PURCHASE OF GOODS/SERVICES - FOREIGN SUBSISTENCE,Contaminants Policy & Strategy Unit,REDFERN TRAVEL LTD,1011701891,131.84,CONSOLIDATED BUSINESS TRAVEL WEEK 2,BD1 5HQ,ADMIN
FOOD STANDARDS AGENCY - Westminster,FOOD STANDARDS AGENCY - Westminster,2017-01-16,EXP - PURCHASE OF GOODS/SERVICES - AIR TRAVEL,Organisational Development,REDFERN TRAVEL LTD,1011701891,130.5,CONSOLIDATED BUSINESS TRAVEL WEEK 2,BD1 5HQ,ADMIN
FOOD STANDARDS AGENCY - Westminster,FOOD STANDARDS AGENCY - Westminster,2017-01-23,EXP - PURCHASE OF GOODS/SERVICES - RAIL TRAVEL,Area 3 North West England - Cluster 36,REDFERN TRAVEL LTD,1011701963,129.8,CONSOLIDATED BUSINESS TRAVEL WEEK 3,BD1 5HQ,PROGRAMME
FOOD STANDARDS AGENCY - Westminster,FOOD STANDARDS AGENCY - Westminster,2017-01-23,EXP - PURCHASE OF GOODS/SERVICES - RAIL TRAVEL,Area 6 South East England - Cluster 64,REDFERN TRAVEL LTD,1011701963,126.3,CONSOLIDATED BUSINESS TRAVEL WEEK 3,BD1 5HQ,PROGRAMME
FOOD STANDARDS AGENCY - Westminster,FOOD STANDARDS AGENCY - Westminster,2017-01-23,EXP - PURCHASE OF GOODS/SERVICES - AIR TRAVEL,Operational Delivery,REDFERN TRAVEL LTD,1011701963,123.44,CONSOLIDATED BUSINESS TRAVEL WEEK 3,BD1 5HQ,PROGRAMME
FOOD STANDARDS AGENCY - Westminster,FOOD STANDARDS AGENCY - Westminster,2017-01-16,EXP - PURCHASE OF GOODS/SERVICES - SUBSISTENCE,Area 3 North West England - Cluster 35,REDFERN TRAVEL LTD,1011701891,123.06,CONSOLIDATED BUSINESS TRAVEL WEEK 2,BD1 5HQ,PROGRAMME
FOOD STANDARDS AGENCY - Westminster,FOOD STANDARDS AGENCY - Westminster,2017-01-16,EXP - PURCHASE OF GOODS/SERVICES - RAIL TRAVEL,Security & Estates,REDFERN TRAVEL LTD,1011701891,122.8,CONSOLIDATED BUSINESS TRAVEL WEEK 2,BD1 5HQ,ADMIN
FOOD STANDARDS AGENCY - Westminster,FOOD STANDARDS AGENCY - Westminster,2017-01-23,EXP - PURCHASE OF GOODS/SERVICES - SUBSISTENCE,Legal Branch A & Investigations,REDFERN TRAVEL LTD,1011701963,121.2,CONSOLIDATED BUSINESS TRAVEL WEEK 3,BD1 5HQ,ADMIN
FOOD STANDARDS AGENCY - Westminster,FOOD STANDARDS AGENCY - Westminster,2017-01-16,EXP - PURCHASE OF GOODS/SERVICES - RAIL TRAVEL,Area 4 North East England - Cluster 47,REDFERN TRAVEL LTD,1011701891,119.15,CONSOLIDATED BUSINESS TRAVEL WEEK 2,BD1 5HQ,PROGRAMME
FOOD STANDARDS AGENCY - Westminster,FOOD STANDARDS AGENCY - Westminster,2017-01-23,EXP - PURCHASE OF GOODS/SERVICES -  FOREIGN AIR TRAVEL,Scientific Methods & Laboratory Policy,REDFERN TRAVEL LTD,1011701963,118.6,CONSOLIDATED BUSINESS TRAVEL WEEK 3,BD1 5HQ,ADMIN
FOOD STANDARDS AGENCY - Westminster,FOOD STANDARDS AGENCY - Westminster,2017-01-16,EXP - PURCHASE OF GOODS/SERVICES - AIR TRAVEL,Chief Executive & Private Office,REDFERN TRAVEL LTD,1011701891,114.53,CONSOLIDATED BUSINESS TRAVEL WEEK 2,BD1 5HQ,ADMIN
FOOD STANDARDS AGENCY - Westminster,FOOD STANDARDS AGENCY - Westminster,2017-01-16,EXP - PURCHASE OF GOODS/SERVICES - SUBSISTENCE,Procurement,REDFERN TRAVEL LTD,1011701891,113.84,CONSOLIDATED BUSINESS TRAVEL WEEK 2,BD1 5HQ,ADMIN
FOOD STANDARDS AGENCY - Westminster,FOOD STANDARDS AGENCY - Westminster,2017-01-23,EXP - PURCHASE OF GOODS/SERVICES - RAIL TRAVEL,Chief Scientist,REDFERN TRAVEL LTD,1011701963,112.4,CONSOLIDATED BUSINESS TRAVEL WEEK 3,BD1 5HQ,ADMIN
FOOD STANDARDS AGENCY - Westminster,FOOD STANDARDS AGENCY - Westminster,2017-01-23,EXP - PURCHASE OF GOODS/SERVICES - SUBSISTENCE,Organisational Development,REDFERN TRAVEL LTD,1011701963,110.13,CONSOLIDATED BUSINESS TRAVEL WEEK 3,BD1 5HQ,ADMIN
FOOD STANDARDS AGENCY - Westminster,FOOD STANDARDS AGENCY - Westminster,2017-01-16,EXP - PURCHASE OF GOODS/SERVICES - RAIL TRAVEL,Procurement,REDFERN TRAVEL LTD,1011701891,110.1,CONSOLIDATED BUSINESS TRAVEL WEEK 2,BD1 5HQ,ADMIN
FOOD STANDARDS AGENCY - Westminster,FOOD STANDARDS AGENCY - Westminster,2017-01-16,EXP - PURCHASE OF GOODS/SERVICES - SUBSISTENCE,Imports & Exports Team (Admin),REDFERN TRAVEL LTD,1011701891,108.78,CONSOLIDATED BUSINESS TRAVEL WEEK 2,BD1 5HQ,ADMIN
FOOD STANDARDS AGENCY - Westminster,FOOD STANDARDS AGENCY - Westminster,2017-01-16,EXP - PURCHASE OF GOODS/SERVICES - FOREIGN SUBSISTENCE,Legal Branch A & Investigations,REDFERN TRAVEL LTD,1011701891,107.29,CONSOLIDATED BUSINESS TRAVEL WEEK 2,BD1 5HQ,ADMIN
FOOD STANDARDS AGENCY - Westminster,FOOD STANDARDS AGENCY - Westminster,2017-01-16,EXP - PURCHASE OF GOODS/SERVICES - RAIL TRAVEL,Animal Feed Branch,REDFERN TRAVEL LTD,1011701891,102.5,CONSOLIDATED BUSINESS TRAVEL WEEK 2,BD1 5HQ,ADMIN
FOOD STANDARDS AGENCY - Westminster,FOOD STANDARDS AGENCY - Westminster,2017-01-16,EXP - PURCHASE OF GOODS/SERVICES - RAIL TRAVEL,Contaminants HoD,REDFERN TRAVEL LTD,1011701891,99.35,CONSOLIDATED BUSINESS TRAVEL WEEK 2,BD1 5HQ,ADMIN
FOOD STANDARDS AGENCY - Westminster,FOOD STANDARDS AGENCY - Westminster,2017-01-16,EXP - PURCHASE OF GOODS/SERVICES - AIR TRAVEL,Food Incidents & Resilience - Prog,REDFERN TRAVEL LTD,1011701891,98.7,CONSOLIDATED BUSINESS TRAVEL WEEK 2,BD1 5HQ,PROGRAMME
FOOD STANDARDS AGENCY - Westminster,FOOD STANDARDS AGENCY - Westminster,2017-01-16,EXP - PURCHASE OF GOODS/SERVICES - FOREIGN SUBSISTENCE,Regulatory Delivery ,REDFERN TRAVEL LTD,1011701891,97.32,CONSOLIDATED BUSINESS TRAVEL WEEK 2,BD1 5HQ,ADMIN
FOOD STANDARDS AGENCY - Westminster,FOOD STANDARDS AGENCY - Westminster,2017-01-16,EXP - PURCHASE OF GOODS/SERVICES - RAIL TRAVEL,Area 3 North West England - Cluster 34,REDFERN TRAVEL LTD,1011701891,97.3,CONSOLIDATED BUSINESS TRAVEL WEEK 2,BD1 5HQ,PROGRAMME
FOOD STANDARDS AGENCY - Westminster,FOOD STANDARDS AGENCY - Westminster,2017-01-16,EXP - PURCHASE OF GOODS/SERVICES - SUBSISTENCE,Chair & Deputy Chair,REDFERN TRAVEL LTD,1011701891,96,CONSOLIDATED BUSINESS TRAVEL WEEK 2,BD1 5HQ,ADMIN
FOOD STANDARDS AGENCY - Westminster,FOOD STANDARDS AGENCY - Westminster,2017-01-23,EXP - PURCHASE OF GOODS/SERVICES - RAIL TRAVEL,Area 4 North East England - Cluster 44,REDFERN TRAVEL LTD,1011701963,94.9,CONSOLIDATED BUSINESS TRAVEL WEEK 3,BD1 5HQ,PROGRAMME
FOOD STANDARDS AGENCY - Westminster,FOOD STANDARDS AGENCY - Westminster,2017-01-23,EXP - PURCHASE OF GOODS/SERVICES - SUBSISTENCE,Non Meat Field Ops,REDFERN TRAVEL LTD,1011701963,92.6,CONSOLIDATED BUSINESS TRAVEL WEEK 3,BD1 5HQ,PROGRAMME
FOOD STANDARDS AGENCY - Westminster,FOOD STANDARDS AGENCY - Westminster,2017-01-16,EXP - PURCHASE OF GOODS/SERVICES - SUBSISTENCE,Finance Director & Branch,REDFERN TRAVEL LTD,1011701891,89.6,CONSOLIDATED BUSINESS TRAVEL WEEK 2,BD1 5HQ,ADMIN
FOOD STANDARDS AGENCY - Westminster,FOOD STANDARDS AGENCY - Westminster,2017-01-16,EXP - PURCHASE OF GOODS/SERVICES -  FOREIGN AIR TRAVEL,Contaminants HoD,REDFERN TRAVEL LTD,1011701891,89,CONSOLIDATED BUSINESS TRAVEL WEEK 2,BD1 5HQ,ADMIN
FOOD STANDARDS AGENCY - Westminster,FOOD STANDARDS AGENCY - Westminster,2017-01-16,EXP - PURCHASE OF GOODS/SERVICES - RAIL TRAVEL,Area 4 North East England - Cluster 48,REDFERN TRAVEL LTD,1011701891,88.4,CONSOLIDATED BUSINESS TRAVEL WEEK 2,BD1 5HQ,PROGRAMME
FOOD STANDARDS AGENCY - Westminster,FOOD STANDARDS AGENCY - Westminster,2017-01-16,EXP - PURCHASE OF GOODS/SERVICES - SUBSISTENCE,Area 3 North West England - Cluster 31,REDFERN TRAVEL LTD,1011701891,86.89,CONSOLIDATED BUSINESS TRAVEL WEEK 2,BD1 5HQ,PROGRAMME
FOOD STANDARDS AGENCY - Westminster,FOOD STANDARDS AGENCY - Westminster,2017-01-16,EXP - PURCHASE OF GOODS/SERVICES - SUBSISTENCE,Area 3 North West England - Cluster 36,REDFERN TRAVEL LTD,1011701891,86.85,CONSOLIDATED BUSINESS TRAVEL WEEK 2,BD1 5HQ,PROGRAMME
FOOD STANDARDS AGENCY - Westminster,FOOD STANDARDS AGENCY - Westminster,2017-01-16,EXP - PURCHASE OF GOODS/SERVICES - RAIL TRAVEL,Area 4 North East England - Cluster 45,REDFERN TRAVEL LTD,1011701891,85.5,CONSOLIDATED BUSINESS TRAVEL WEEK 2,BD1 5HQ,PROGRAMME
FOOD STANDARDS AGENCY - Westminster,FOOD STANDARDS AGENCY - Westminster,2017-01-23,EXP - PURCHASE OF GOODS/SERVICES - RAIL TRAVEL,Security & Estates,REDFERN TRAVEL LTD,1011701963,84.9,CONSOLIDATED BUSINESS TRAVEL WEEK 3,BD1 5HQ,ADMIN
FOOD STANDARDS AGENCY - Westminster,FOOD STANDARDS AGENCY - Westminster,2017-01-16,EXP - PURCHASE OF GOODS/SERVICES - SUBSISTENCE,Area 2 Wales - Cluster 23,REDFERN TRAVEL LTD,1011701891,82.44,CONSOLIDATED BUSINESS TRAVEL WEEK 2,BD1 5HQ,PROGRAMME
FOOD STANDARDS AGENCY - Westminster,FOOD STANDARDS AGENCY - Westminster,2017-01-23,EXP - PURCHASE OF GOODS/SERVICES - SUBSISTENCE,Area 5 South West England - Cluster 57,REDFERN TRAVEL LTD,1011701963,80.85,CONSOLIDATED BUSINESS TRAVEL WEEK 3,BD1 5HQ,PROGRAMME
FOOD STANDARDS AGENCY - Westminster,FOOD STANDARDS AGENCY - Westminster,2017-01-16,EXP - PURCHASE OF GOODS/SERVICES - SUBSISTENCE,Regulating our Future,REDFERN TRAVEL LTD,1011701891,77.55,CONSOLIDATED BUSINESS TRAVEL WEEK 2,BD1 5HQ,ADMIN
FOOD STANDARDS AGENCY - Westminster,FOOD STANDARDS AGENCY - Westminster,2017-01-23,EXP - PURCHASE OF GOODS/SERVICES - SUBSISTENCE,Chief Executive & Private Office,REDFERN TRAVEL LTD,1011701963,76.2,CONSOLIDATED BUSINESS TRAVEL WEEK 3,BD1 5HQ,ADMIN
FOOD STANDARDS AGENCY - Westminster,FOOD STANDARDS AGENCY - Westminster,2017-01-23,EXP - PURCHASE OF GOODS/SERVICES - RAIL TRAVEL,Area 3 North West England - Cluster 34,REDFERN TRAVEL LTD,1011701963,75.2,CONSOLIDATED BUSINESS TRAVEL WEEK 3,BD1 5HQ,PROGRAMME
FOOD STANDARDS AGENCY - Westminster,FOOD STANDARDS AGENCY - Westminster,2017-01-16,EXP - PURCHASE OF GOODS/SERVICES - RAIL TRAVEL,Legal Branch A & Investigations,REDFERN TRAVEL LTD,1011701891,75.1,CONSOLIDATED BUSINESS TRAVEL WEEK 2,BD1 5HQ,ADMIN
FOOD STANDARDS AGENCY - Westminster,FOOD STANDARDS AGENCY - Westminster,2017-01-16,EXP - PURCHASE OF GOODS/SERVICES - RAIL TRAVEL,Internal Audit,REDFERN TRAVEL LTD,1011701891,73.5,CONSOLIDATED BUSINESS TRAVEL WEEK 2,BD1 5HQ,ADMIN
FOOD STANDARDS AGENCY - Westminster,FOOD STANDARDS AGENCY - Westminster,2017-01-16,EXP - PURCHASE OF GOODS/SERVICES - RAIL TRAVEL,Area 3 North West England - Cluster 36,REDFERN TRAVEL LTD,1011701891,71.5,CONSOLIDATED BUSINESS TRAVEL WEEK 2,BD1 5HQ,PROGRAMME
FOOD STANDARDS AGENCY - Westminster,FOOD STANDARDS AGENCY - Westminster,2017-01-23,EXP - PURCHASE OF GOODS/SERVICES - SUBSISTENCE,Animal Feed Branch,REDFERN TRAVEL LTD,1011701963,70.6,CONSOLIDATED BUSINESS TRAVEL WEEK 3,BD1 5HQ,ADMIN
FOOD STANDARDS AGENCY - Westminster,FOOD STANDARDS AGENCY - Westminster,2017-01-16,EXP - PURCHASE OF GOODS/SERVICES - SUBSISTENCE,Contaminants HoD,REDFERN TRAVEL LTD,1011701891,70,CONSOLIDATED BUSINESS TRAVEL WEEK 2,BD1 5HQ,ADMIN
FOOD STANDARDS AGENCY - Westminster,FOOD STANDARDS AGENCY - Westminster,2017-01-16,EXP - PURCHASE OF GOODS/SERVICES - SUBSISTENCE,Area 6 South East England - Cluster 63,REDFERN TRAVEL LTD,1011701891,68.4,CONSOLIDATED BUSINESS TRAVEL WEEK 2,BD1 5HQ,PROGRAMME
FOOD STANDARDS AGENCY - Westminster,FOOD STANDARDS AGENCY - Westminster,2017-01-16,EXP - PURCHASE OF GOODS/SERVICES - RAIL TRAVEL,Food Incidents & Resilience - Prog,REDFERN TRAVEL LTD,1011701891,68.3,CONSOLIDATED BUSINESS TRAVEL WEEK 2,BD1 5HQ,PROGRAMME
FOOD STANDARDS AGENCY - Westminster,FOOD STANDARDS AGENCY - Westminster,2017-01-23,EXP - PURCHASE OF GOODS/SERVICES - RAIL TRAVEL,Area 2 Wales - Cluster 21,REDFERN TRAVEL LTD,1011701963,67.6,CONSOLIDATED BUSINESS TRAVEL WEEK 3,BD1 5HQ,PROGRAMME
FOOD STANDARDS AGENCY - Westminster,FOOD STANDARDS AGENCY - Westminster,2017-01-23,EXP - PURCHASE OF GOODS/SERVICES - SUBSISTENCE,Food Crime Unit - Admin,REDFERN TRAVEL LTD,1011701963,66.6,CONSOLIDATED BUSINESS TRAVEL WEEK 3,BD1 5HQ,ADMIN
FOOD STANDARDS AGENCY - Westminster,FOOD STANDARDS AGENCY - Westminster,2017-01-23,EXP - PURCHASE OF GOODS/SERVICES - SUBSISTENCE,Food Crime Unit - Prog,REDFERN TRAVEL LTD,1011701963,66.6,CONSOLIDATED BUSINESS TRAVEL WEEK 3,BD1 5HQ,PROGRAMME
FOOD STANDARDS AGENCY - Westminster,FOOD STANDARDS AGENCY - Westminster,2017-01-16,EXP - PURCHASE OF GOODS/SERVICES - RAIL TRAVEL,Area 6 South East England - Cluster 62,REDFERN TRAVEL LTD,1011701891,65.3,CONSOLIDATED BUSINESS TRAVEL WEEK 2,BD1 5HQ,PROGRAMME
FOOD STANDARDS AGENCY - Westminster,FOOD STANDARDS AGENCY - Westminster,2017-01-16,EXP - PURCHASE OF GOODS/SERVICES - RAIL TRAVEL,Area 3 North West England - Cluster 31,REDFERN TRAVEL LTD,1011701891,64,CONSOLIDATED BUSINESS TRAVEL WEEK 2,BD1 5HQ,PROGRAMME
FOOD STANDARDS AGENCY - Westminster,FOOD STANDARDS AGENCY - Westminster,2017-01-16,EXP - PURCHASE OF GOODS/SERVICES -  FOREIGN AIR TRAVEL,Allergens,REDFERN TRAVEL LTD,1011701891,62.41,CONSOLIDATED BUSINESS TRAVEL WEEK 2,BD1 5HQ,ADMIN
FOOD STANDARDS AGENCY - Westminster,FOOD STANDARDS AGENCY - Westminster,2017-01-23,EXP - PURCHASE OF GOODS/SERVICES - AIR TRAVEL,Operations Assurance ,REDFERN TRAVEL LTD,1011701963,62.16,CONSOLIDATED BUSINESS TRAVEL WEEK 3,BD1 5HQ,PROGRAMME
FOOD STANDARDS AGENCY - Westminster,FOOD STANDARDS AGENCY - Westminster,2017-01-23,EXP - PURCHASE OF GOODS/SERVICES - SUBSISTENCE,Area 5 South West England - Cluster 56,REDFERN TRAVEL LTD,1011701963,61.23,CONSOLIDATED BUSINESS TRAVEL WEEK 3,BD1 5HQ,PROGRAMME
FOOD STANDARDS AGENCY - Westminster,FOOD STANDARDS AGENCY - Westminster,2017-01-23,EXP - PURCHASE OF GOODS/SERVICES - SUBSISTENCE,Area 4 North East England - Cluster 41,REDFERN TRAVEL LTD,1011701963,60.1,CONSOLIDATED BUSINESS TRAVEL WEEK 3,BD1 5HQ,PROGRAMME
FOOD STANDARDS AGENCY - Westminster,FOOD STANDARDS AGENCY - Westminster,2017-01-18,EXP - PURCHASE OF GOODS/SERVICES - ICT OUTSOURCING & MAINT/SUPPORT,Finance Director & Branch,MIDLAND SOFTWARE LTD,1011701916,59.42,Midland initial charged - Hosted only (G-Cloud) ,NG11 6LL,ADMIN
FOOD STANDARDS AGENCY - Westminster,FOOD STANDARDS AGENCY - Westminster,2017-01-23,EXP - PURCHASE OF GOODS/SERVICES - RAIL TRAVEL,Area 5 South West England - Cluster 55,REDFERN TRAVEL LTD,1011701963,58.7,CONSOLIDATED BUSINESS TRAVEL WEEK 3,BD1 5HQ,PROGRAMME
FOOD STANDARDS AGENCY - Westminster,FOOD STANDARDS AGENCY - Westminster,2017-01-16,EXP - PURCHASE OF GOODS/SERVICES - SUBSISTENCE,Area 5 South West England - Cluster 54,REDFERN TRAVEL LTD,1011701891,58.62,CONSOLIDATED BUSINESS TRAVEL WEEK 2,BD1 5HQ,PROGRAMME
FOOD STANDARDS AGENCY - Westminster,FOOD STANDARDS AGENCY - Westminster,2017-01-16,EXP - PURCHASE OF GOODS/SERVICES - RAIL TRAVEL,Area 4 North East England - Cluster 42,REDFERN TRAVEL LTD,1011701891,57.6,CONSOLIDATED BUSINESS TRAVEL WEEK 2,BD1 5HQ,PROGRAMME
FOOD STANDARDS AGENCY - Westminster,FOOD STANDARDS AGENCY - Westminster,2017-01-16,EXP - PURCHASE OF GOODS/SERVICES - RAIL TRAVEL,Area 5 South West England - Cluster 57,REDFERN TRAVEL LTD,1011701891,56,CONSOLIDATED BUSINESS TRAVEL WEEK 2,BD1 5HQ,PROGRAMME
FOOD STANDARDS AGENCY - Westminster,FOOD STANDARDS AGENCY - Westminster,2017-01-23,EXP - PURCHASE OF GOODS/SERVICES - TAXI SERVICES,Operations Assurance ,REDFERN TRAVEL LTD,1011701963,51.37,CONSOLIDATED BUSINESS TRAVEL WEEK 3,BD1 5HQ,PROGRAMME
FOOD STANDARDS AGENCY - Westminster,FOOD STANDARDS AGENCY - Westminster,2017-01-23,EXP - PURCHASE OF GOODS/SERVICES - RAIL TRAVEL,Area 5 South West England - Cluster 57,REDFERN TRAVEL LTD,1011701963,51,CONSOLIDATED BUSINESS TRAVEL WEEK 3,BD1 5HQ,PROGRAMME
FOOD STANDARDS AGENCY - Westminster,FOOD STANDARDS AGENCY - Westminster,2017-01-23,EXP - PURCHASE OF GOODS/SERVICES - RAIL TRAVEL,Area 4 North East England - Cluster 43,REDFERN TRAVEL LTD,1011701963,50.8,CONSOLIDATED BUSINESS TRAVEL WEEK 3,BD1 5HQ,PROGRAMME
FOOD STANDARDS AGENCY - Westminster,FOOD STANDARDS AGENCY - Westminster,2017-01-23,EXP - PURCHASE OF GOODS/SERVICES - RAIL TRAVEL,Area 1 Scotland - Cluster 14,REDFERN TRAVEL LTD,1011701963,47.3,CONSOLIDATED BUSINESS TRAVEL WEEK 3,BD1 5HQ,PROGRAMME
FOOD STANDARDS AGENCY - Westminster,FOOD STANDARDS AGENCY - Westminster,2017-01-23,EXP - PURCHASE OF GOODS/SERVICES - SUBSISTENCE,"Employee Relations, Systems and Data",REDFERN TRAVEL LTD,1011701963,43.2,CONSOLIDATED BUSINESS TRAVEL WEEK 3,BD1 5HQ,ADMIN
FOOD STANDARDS AGENCY - Westminster,FOOD STANDARDS AGENCY - Westminster,2017-01-16,EXP - PURCHASE OF GOODS/SERVICES - SUBSISTENCE,Area 4 North East England - Cluster 41,REDFERN TRAVEL LTD,1011701891,41.22,CONSOLIDATED BUSINESS TRAVEL WEEK 2,BD1 5HQ,PROGRAMME
FOOD STANDARDS AGENCY - Westminster,FOOD STANDARDS AGENCY - Westminster,2017-01-16,EXP - PURCHASE OF GOODS/SERVICES - SUBSISTENCE,Area 4 North East England - Cluster 42,REDFERN TRAVEL LTD,1011701891,41.22,CONSOLIDATED BUSINESS TRAVEL WEEK 2,BD1 5HQ,PROGRAMME
FOOD STANDARDS AGENCY - Westminster,FOOD STANDARDS AGENCY - Westminster,2017-01-16,EXP - PURCHASE OF GOODS/SERVICES - SUBSISTENCE,Area 5 South West England - Cluster 56,REDFERN TRAVEL LTD,1011701891,41.22,CONSOLIDATED BUSINESS TRAVEL WEEK 2,BD1 5HQ,PROGRAMME
FOOD STANDARDS AGENCY - Westminster,FOOD STANDARDS AGENCY - Westminster,2017-01-16,EXP - PURCHASE OF GOODS/SERVICES - SUBSISTENCE,Internal Audit,REDFERN TRAVEL LTD,1011701891,41.22,CONSOLIDATED BUSINESS TRAVEL WEEK 2,BD1 5HQ,ADMIN
FOOD STANDARDS AGENCY - Westminster,FOOD STANDARDS AGENCY - Westminster,2017-01-23,EXP - PURCHASE OF GOODS/SERVICES - SUBSISTENCE,Area 4 North East England - Cluster 44,REDFERN TRAVEL LTD,1011701963,41.22,CONSOLIDATED BUSINESS TRAVEL WEEK 3,BD1 5HQ,PROGRAMME
FOOD STANDARDS AGENCY - Westminster,FOOD STANDARDS AGENCY - Westminster,2017-01-23,EXP - PURCHASE OF GOODS/SERVICES - SUBSISTENCE,Area 5 South West England - Cluster 54,REDFERN TRAVEL LTD,1011701963,41.22,CONSOLIDATED BUSINESS TRAVEL WEEK 3,BD1 5HQ,PROGRAMME
FOOD STANDARDS AGENCY - Westminster,FOOD STANDARDS AGENCY - Westminster,2017-01-23,EXP - PURCHASE OF GOODS/SERVICES - SUBSISTENCE,Area 6 South East England - Cluster 62,REDFERN TRAVEL LTD,1011701963,41.22,CONSOLIDATED BUSINESS TRAVEL WEEK 3,BD1 5HQ,PROGRAMME
FOOD STANDARDS AGENCY - Westminster,FOOD STANDARDS AGENCY - Westminster,2017-01-16,EXP - PURCHASE OF GOODS/SERVICES - RAIL TRAVEL,Area 6 South East England - Cluster 64,REDFERN TRAVEL LTD,1011701891,37,CONSOLIDATED BUSINESS TRAVEL WEEK 2,BD1 5HQ,PROGRAMME
FOOD STANDARDS AGENCY - Westminster,FOOD STANDARDS AGENCY - Westminster,2017-01-16,EXP - PURCHASE OF GOODS/SERVICES - SUBSISTENCE,Area 6 South East England - Cluster 64,REDFERN TRAVEL LTD,1011701891,34.2,CONSOLIDATED BUSINESS TRAVEL WEEK 2,BD1 5HQ,PROGRAMME
FOOD STANDARDS AGENCY - Westminster,FOOD STANDARDS AGENCY - Westminster,2017-01-16,EXP - PURCHASE OF GOODS/SERVICES - SUBSISTENCE,Corporate Support Unit,REDFERN TRAVEL LTD,1011701891,32.28,CONSOLIDATED BUSINESS TRAVEL WEEK 2,BD1 5HQ,ADMIN
FOOD STANDARDS AGENCY - Westminster,FOOD STANDARDS AGENCY - Westminster,2017-01-16,EXP - PURCHASE OF GOODS/SERVICES - TAXI SERVICES,Regulatory Delivery ,REDFERN TRAVEL LTD,1011701891,27.69,CONSOLIDATED BUSINESS TRAVEL WEEK 2,BD1 5HQ,ADMIN
FOOD STANDARDS AGENCY - Westminster,FOOD STANDARDS AGENCY - Westminster,2017-01-23,EXP - PURCHASE OF GOODS/SERVICES - RAIL TRAVEL,Contaminants HoD,REDFERN TRAVEL LTD,1011701963,22.3,CONSOLIDATED BUSINESS TRAVEL WEEK 3,BD1 5HQ,ADMIN
FOOD STANDARDS AGENCY - Westminster,FOOD STANDARDS AGENCY - Westminster,2017-01-23,EXP - PURCHASE OF GOODS/SERVICES - RAIL TRAVEL,Food Production Branch,REDFERN TRAVEL LTD,1011701963,22,CONSOLIDATED BUSINESS TRAVEL WEEK 3,BD1 5HQ,ADMIN
FOOD STANDARDS AGENCY - Westminster,FOOD STANDARDS AGENCY - Westminster,2017-01-16,EXP - PURCHASE OF GOODS/SERVICES - TAXI SERVICES,Chief Executive & Private Office,REDFERN TRAVEL LTD,1011701891,19.24,CONSOLIDATED BUSINESS TRAVEL WEEK 2,BD1 5HQ,ADMIN
FOOD STANDARDS AGENCY - Westminster,FOOD STANDARDS AGENCY - Westminster,2017-01-16,EXP - PURCHASE OF GOODS/SERVICES - RAIL TRAVEL,Analysis & Research Branch,REDFERN TRAVEL LTD,1011701891,17.5,CONSOLIDATED BUSINESS TRAVEL WEEK 2,BD1 5HQ,ADMIN
FOOD STANDARDS AGENCY - Westminster,FOOD STANDARDS AGENCY - Westminster,2017-01-23,EXP - PURCHASE OF GOODS/SERVICES - TAXI SERVICES,Chief Executive & Private Office,REDFERN TRAVEL LTD,1011701963,15.44,CONSOLIDATED BUSINESS TRAVEL WEEK 3,BD1 5HQ,ADMIN
FOOD STANDARDS AGENCY - Westminster,FOOD STANDARDS AGENCY - Westminster,2017-01-23,EXP - PURCHASE OF GOODS/SERVICES - SUBSISTENCE,Additives,REDFERN TRAVEL LTD,1011701963,10.06,CONSOLIDATED BUSINESS TRAVEL WEEK 3,BD1 5HQ,ADMIN
FOOD STANDARDS AGENCY - Westminster,FOOD STANDARDS AGENCY - Westminster,2017-01-23,EXP - PURCHASE OF GOODS/SERVICES - RAIL TRAVEL,Allergens,REDFERN TRAVEL LTD,1011701963,10,CONSOLIDATED BUSINESS TRAVEL WEEK 3,BD1 5HQ,ADMIN
FOOD STANDARDS AGENCY - Westminster,FOOD STANDARDS AGENCY - Westminster,2017-01-23,EXP - PURCHASE OF GOODS/SERVICES - RAIL TRAVEL,Area 3 North West England - Cluster 35,REDFERN TRAVEL LTD,1011701963,7,CONSOLIDATED BUSINESS TRAVEL WEEK 3,BD1 5HQ,PROGRAMME
FOOD STANDARDS AGENCY - Westminster,FOOD STANDARDS AGENCY - Westminster,2017-01-23,EXP - PURCHASE OF GOODS/SERVICES - SUBSISTENCE,Area 6 South East England - Cluster 63,REDFERN TRAVEL LTD,1011701963,1.2,CONSOLIDATED BUSINESS TRAVEL WEEK 3,BD1 5HQ,PROGRAMME
FOOD STANDARDS AGENCY - Westminster,FOOD STANDARDS AGENCY - Westminster,2017-01-16,EXP - PURCHASE OF GOODS/SERVICES - SUBSISTENCE,"Employee Relations, Systems and Data",REDFERN TRAVEL LTD,1011701891,0.6,CONSOLIDATED BUSINESS TRAVEL WEEK 2,BD1 5HQ,ADMIN
FOOD STANDARDS AGENCY - Westminster,FOOD STANDARDS AGENCY - Westminster,2017-01-16,EXP - PURCHASE OF GOODS/SERVICES - SUBSISTENCE,Food Crime Unit - Prog,REDFERN TRAVEL LTD,1011701891,0.6,CONSOLIDATED BUSINESS TRAVEL WEEK 2,BD1 5HQ,PROGRAMME
FOOD STANDARDS AGENCY - Westminster,FOOD STANDARDS AGENCY - Westminster,2017-01-16,EXP - PURCHASE OF GOODS/SERVICES - FOREIGN SUBSISTENCE,Allergens,REDFERN TRAVEL LTD,1011701891,0.6,CONSOLIDATED BUSINESS TRAVEL WEEK 2,BD1 5HQ,ADMIN
FOOD STANDARDS AGENCY - Westminster,FOOD STANDARDS AGENCY - Westminster,2017-01-23,EXP - PURCHASE OF GOODS/SERVICES - SUBSISTENCE,Area 6 South East England - Cluster 64,REDFERN TRAVEL LTD,1011701963,0.6,CONSOLIDATED BUSINESS TRAVEL WEEK 3,BD1 5HQ,PROGRAMME
FOOD STANDARDS AGENCY - Westminster,FOOD STANDARDS AGENCY - Westminster,2017-01-23,EXP - PURCHASE OF GOODS/SERVICES - FOREIGN SUBSISTENCE,Scientific Methods & Laboratory Policy,REDFERN TRAVEL LTD,1011701963,0.6,CONSOLIDATED BUSINESS TRAVEL WEEK 3,BD1 5HQ,ADMIN
FOOD STANDARDS AGENCY - Westminster,FOOD STANDARDS AGENCY - Westminster,2017-01-23,EXP - PURCHASE OF GOODS/SERVICES - SUBSISTENCE,Area 6 South East England - Cluster 66,REDFERN TRAVEL LTD,1011701963,0.6,CONSOLIDATED BUSINESS TRAVEL WEEK 3,BD1 5HQ,PROGRAMME
FOOD STANDARDS AGENCY - Westminster,FOOD STANDARDS AGENCY - Westminster,2017-01-16,EXP - PURCHASE OF GOODS/SERVICES - AIR TRAVEL,Food Crime Unit - Admin,REDFERN TRAVEL LTD,1011701891,-9.89,CONSOLIDATED BUSINESS TRAVEL WEEK 2,BD1 5HQ,ADMIN
FOOD STANDARDS AGENCY - Westminster,FOOD STANDARDS AGENCY - Westminster,2017-01-23,EXP - PURCHASE OF GOODS/SERVICES - RAIL TRAVEL,Additives,REDFERN TRAVEL LTD,1011701963,-23.9,CONSOLIDATED BUSINESS TRAVEL WEEK 3,BD1 5HQ,ADMIN
FOOD STANDARDS AGENCY - Westminster,FOOD STANDARDS AGENCY - Westminster,2017-01-23,EXP - PURCHASE OF GOODS/SERVICES - RAIL TRAVEL,Area 3 North West England - Cluster 33,REDFERN TRAVEL LTD,1011701963,-33.3,CONSOLIDATED BUSINESS TRAVEL WEEK 3,BD1 5HQ,PROGRAMME
FOOD STANDARDS AGENCY - Westminster,FOOD STANDARDS AGENCY - Westminster,2017-01-16,EXP - PURCHASE OF GOODS/SERVICES - RAIL TRAVEL,Food Crime Unit - Admin,REDFERN TRAVEL LTD,1011701891,-56.2,CONSOLIDATED BUSINESS TRAVEL WEEK 2,BD1 5HQ,ADMIN
FOOD STANDARDS AGENCY - Westminster,FOOD STANDARDS AGENCY - Westminster,2017-01-16,EXP - PURCHASE OF GOODS/SERVICES - RAIL TRAVEL,Area 4 North East England - Cluster 44,REDFERN TRAVEL LTD,1011701891,-61.4,CONSOLIDATED BUSINESS TRAVEL WEEK 2,BD1 5HQ,PROGRAMME
FOOD STANDARDS AGENCY - Westminster,FOOD STANDARDS AGENCY - Westminster,2017-01-23,EXP - PURCHASE OF GOODS/SERVICES - RAIL TRAVEL,Food Crime Unit - Admin,REDFERN TRAVEL LTD,1011701963,-70.15,CONSOLIDATED BUSINESS TRAVEL WEEK 3,BD1 5HQ,ADMIN
FOOD STANDARDS AGENCY - Westminster,FOOD STANDARDS AGENCY - Westminster,2017-01-23,EXP - PURCHASE OF GOODS/SERVICES - RAIL TRAVEL,Area 3 North West England - Cluster 32,REDFERN TRAVEL LTD,1011701963,-77.5,CONSOLIDATED BUSINESS TRAVEL WEEK 3,BD1 5HQ,PROGRAMME
FOOD STANDARDS AGENCY - Westminster,FOOD STANDARDS AGENCY - Westminster,2017-01-23,EXP - PURCHASE OF GOODS/SERVICES - RAIL TRAVEL,Chief Executive & Private Office,REDFERN TRAVEL LTD,1011701963,-164,CONSOLIDATED BUSINESS TRAVEL WEEK 3,BD1 5HQ,ADMIN
FOOD STANDARDS AGENCY - Westminster,FOOD STANDARDS AGENCY - Westminster,2017-01-16,EXP - PURCHASE OF GOODS/SERVICES - RAIL TRAVEL,Microbiological Food Safety Branch,REDFERN TRAVEL LTD,1011701891,-165,CONSOLIDATED BUSINESS TRAVEL WEEK 2,BD1 5HQ,ADMIN
